{"text_format":"1","workbook":"xlsx","n_sheets":7,"sheets":["Mentett","KronoBiológia","KronoAdatok","KronoMagyarázat","Info","KronoElemzés","Regisztráció"],"not_rendered":{"charts":0,"images":1,"macros":1,"external_links":1,"defined_names":2,"comments":0,"pivot_tables":0},"unopened":[],"bounds":{"document_bytes":16777216,"sheet_cells":100000,"rows_first":2000,"rows_last":500,"rows_between":2000,"halvings":0,"cell_chars":16384,"cell_head_chars":4096},"cells_cut":0,"cells_raw":0,"read":"whole","date_system":"1900"}

{"sheet":"Mentett","index":0,"n_rows":9,"n_cols":5,"rows_kept":9,"cut":false,"hidden":true,"merged":[]}
["Sorszám","Név","Év","Hó","Nap"]
[1,"Mel Gibson",1956,1,3]
[2,"Vanessa Paradis",1972,12,22]
[3,"Bruce Willis",1955,3,19]
[4,"Nicole Kidman",1967,6,20]
[5,"Liam Neeson",1952,6,7]
[6,"Sylvester Stallone",1946,7,6]
[7,"Keanu Reeves",1964,9,2]
[8,"Nicolas Cage",1964,1,7]

{"sheet":"KronoBiológia","index":1,"n_rows":33,"n_cols":10,"rows_kept":33,"cut":false,"hidden":false,"merged":[[3,3,3,6]]}
[]
[null,null,"Csak ezt a mezőt kell tölteni",null,"Év","Hónap","Nap"]
[null,null,"Szülési idő",null,1972,12,22]
[null,null,"Név","Vanessa Paradis"]
[null,null,"A program tulajdonosa:","DEMO"]
[]
[null,null,"Évszám",null,{"$f":"VLOOKUP(E3,KronoAdatok!A2:E139,2)","v":21},{"$f":"VLOOKUP(E3,KronoAdatok!A2:E138,3)","v":11},{"$f":"VLOOKUP(E3,KronoAdatok!A2:E138,4)","v":20},{"$f":"IF(VLOOKUP(E3,KronoAdatok!A2:E138,5)=1,\"Szökőév\",\"\")","v":"Szökőév"}]
[null,null,"Hónapszám",{"$f":"IF(F3<3,IF(H7=\"Szökőév\",12,0),0)","v":0},{"$f":"VLOOKUP(F3+D8,KronoAdatok!G2:L15,4)","v":0},{"$f":"VLOOKUP(F3+D8,KronoAdatok!G2:L15,5)","v":0},{"$f":"VLOOKUP(F3+D8,KronoAdatok!G2:L15,6)","v":0},{"$f":"VLOOKUP(F3+D8,KronoAdatok!G2:L15,3)","v":31}]
[null,null,"Hany nap a hónap végig",null,{"$f":"H8-G3","v":9},{"$f":"H8-G3","v":9},{"$f":"H8-G3","v":9}]
[null,null,null,null,{"$f":"SUM(E7:E9)","v":30},{"$f":"SUM(F7:F9)","v":20},{"$f":"SUM(G7:G9)","v":29}]
[null,null,"Bioritm görbe kivonása (ha szükséges)",null,{"$f":"IF(E10<24,0,-23)","v":-23},{"$f":"IF(F10<29,0,-28)","v":0},{"$f":"IF(G10<34,0,-33)","v":0}]
[null,null,"Ha nagyobb még a szám",null,{"$f":"E10+E11","v":7},{"$f":"F10+F11","v":20},{"$f":"G10+G11","v":29}]
[null,null,"Marker",null,{"$f":"IF(E12>23,E12-23,E12)","v":7},{"$f":"IF(F12>28,F12-28,F12)","v":20},{"$f":"IF(G12>33,G12-33,G12)","v":29}]
[]
[]
[null,null,"7. Korona csakra:",{"$f":"VLOOKUP(G13,KronoAdatok!X2:AB35,3)","v":88},null,"Fizikai energia",null,{"$f":"D20+D21","v":117}]
[null,null,"6. Homlok csakra:",{"$f":"VLOOKUP(G13,KronoAdatok!X2:AB35,2)","v":29},null,"Érzelmi energia",null,{"$f":"D18+D19","v":76}]
[null,null,"5. Torok csakra:",{"$f":"VLOOKUP(F13,KronoAdatok!S2:V29,3)","v":32},null,"Szellemi energia",null,{"$f":"D16+D17","v":117}]
[null,null,"4. Szív csakra:",{"$f":"VLOOKUP(F13,KronoAdatok!S2:V29,2)","v":44},null,"Életenergia",null,{"$f":"H16+H17+H18","v":310}]
[null,null,"3. Köldök csakra:",{"$f":"VLOOKUP(E13,KronoAdatok!N2:Q24,3)","v":72}]
[null,null,"2. Szakrális csakra:",{"$f":"VLOOKUP(E13,KronoAdatok!N2:Q24,2)","v":45},null,"Jobb oldal női (yin)",null,{"$f":"D17+D19+D21","v":118}]
[null,null,"1. Gyökér csakra:",{"$f":"(D16+D17+D18+D19+D20+D21)/6","v":51.666666666666664},null,"Bal oldal férfi (yang)",null,{"$f":"D16+D18+D20","v":192}]
[]
[null,null,null,null,"Fizikai","Érzelmi","Intellektuális"]
[null,null,"A bioritmus markerei",null,{"$f":"E13","v":7},{"$f":"F13","v":20},{"$f":"G13","v":29}]
[]
[null,null,null,"Jobb oldal","Bal oldal"]
[null,null,"Fizikai kontúr",{"$f":"D21","v":45},{"$f":"D20","v":72},{"$f":"D28+E28","v":117},{"$f":"VLOOKUP(J28,KronoAdatok!M2:Q24,5,FALSE)","v":"Szangvinikus"},null,null,{"$f":"_xlfn.TEXTJOIN(\"-\",,D28,E28)","v":"45-72"}]
[null,null,"Érzelmi kontúr",{"$f":"D19","v":44},{"$f":"D18","v":32},{"$f":"D29+E29","v":76},{"$f":"VLOOKUP(J29,KronoAdatok!R2:V29,5,FALSE)","v":"Szentimentális"},null,null,{"$f":"_xlfn.TEXTJOIN(\"-\",,D29,E29)","v":"44-32"}]
[null,null,"Szellemi kontúr",{"$f":"D17","v":29},{"$f":"D16","v":88},{"$f":"D30+E30","v":117},{"$f":"VLOOKUP(J30,KronoAdatok!W2:AB34,6,FALSE)","v":"Produktív Gondolkodó"},null,{"$f":"IF(VLOOKUP(J30,KronoAdatok!W2:AB34,5,FALSE)=1,\"Mesterszám\",\"\")","v":"Mesterszám"},{"$f":"_xlfn.TEXTJOIN(\"-\",,D30,E30)","v":"29-88"}]
[null,null,null,{"$f":"D28+D29+D30","v":118},{"$f":"E28+E29+E30","v":192},{"$f":"F28+F29+F30","v":310}]
[]
[null,null,"Kronobiológia-számoló V1.4",null,null,null,null,"www.centralnet.hu"]

{"sheet":"KronoAdatok","index":2,"n_rows":139,"n_cols":28,"rows_kept":139,"cut":false,"hidden":true,"merged":[]}
["Év","Adat1","Adat2","Adat3","Szökőév",null,"sorszám","Hónap","Nap","Adat1","Adat2","Adat3",null,"Marker","Adat1","Adat2","Fizikai kontúr",null,"Marker","Adat1","Adat2","Érzelmi kontúr",null,"Marker","Adat1","Adat2","Mesterszám","Intellektuális kontúr"]
[1900,7,17,17,1,null,1,"Január",31,12,26,4,"33-55",1,33,55,"Közepesen szangvinikus","69-95",1,69,95,"Szenvedélyes","64-35",1,64,35,null,"Produktív Művészi"]
[1901,10,16,15,0,null,2,"Február",28,7,26,9,"55-72",2,55,72,"Szangvinikus","75-27",2,75,27,"Egoisztikus vezető","21-65",2,21,65,null,"Gondolkodó Harmónikus"]
[1902,13,15,13,0,null,3,"Március",31,22,23,11,"15-65",3,15,65,"Kolerikus","31-45",3,31,45,"Empatikus","21-65",3,21,65,null,"Gondolkodó Harmónikus"]
[1903,16,14,11,0,null,4,"Április",30,15,21,14,"50-72",4,50,72,"Szangvinikus","62-77",4,62,77,"Szenvedélyes","93-82",4,93,82,1,"Produktív Vegyes"]
[1904,18,12,8,1,null,5,"Május",31,7,18,16,"30-41",5,30,41,"Közepesen szangvinikus","50-59",5,50,59,"Empatikus","43-41",5,43,41,null,"Harmonimus Vegyes"]
[1905,21,11,6,0,null,6,"Június",30,0,16,19,"75-21",6,75,21,"Flegmatikus","44-68",6,44,68,"Empatikus","0-99",6,0,99,1,"Gondolkodó Harmónikus"]
[1906,1,10,4,0,null,7,"Július",31,15,13,21,"45-72",7,45,72,"Szangvinikus","12-45",7,12,45,"Önfeláldozó","57-88",7,57,88,null,"Produktív Gondolkodó"]
[1907,4,9,2,0,null,8,"Augusztus",31,7,10,23,"60-22",8,60,22,"Flegmatikus","6-23",8,6,23,"Hideg önfeláldozó","7-41",8,7,41,null,"Gyakorlati Gondolkodó"]
[1908,6,7,32,1,null,9,"Szeptember",30,0,8,26,"35-28",9,35,28,"Melankólikus","81-54",9,81,54,"Egoisztikus vezető","29-35",9,29,35,null,"Gyakorlati Gondolkodó"]
[1909,9,6,30,0,null,10,"Október",31,15,5,28,"35-49",10,35,49,"Közepesen szangvinikus","25-77",10,25,77,"Önfeláldozó","86-35",10,86,35,null,"Produktív Művészi"]
[1910,12,5,28,0,null,11,"November",30,8,3,31,"95-22",11,95,22,"Flegmatikus","18-50",11,18,50,"Önfeláldozó","29-82",11,29,82,1,"Produktív Gondolkodó"]
[1911,15,4,26,0,null,12,"December",31,0,0,0,"30-99",12,30,99,"Kolerikus","44-59",12,44,59,"Empatikus","86-41",12,86,41,null,"Produktív Művészi"]
[1912,17,2,23,1,null,13,"Január-szökőév",31,13,27,5,"40-61",13,40,61,"Szangvinikus","25-68",13,25,68,"Önfeláldozó","14-71",13,14,71,null,"Gondolkodó Harmónikus"]
[1913,20,1,21,0,null,14,"Február-szökőév",29,7,26,9,"20-55",14,20,55,"Kolerikus","50-77",14,50,77,"Szenvedélyes","50-59",14,50,59,null,"Harmonimus Vegyes"]
[1914,0,0,19,0,null,null,null,null,null,null,null,"40-28",15,40,28,"Melankólikus","50-99",15,50,99,"Szenvedélyes","78-65",15,78,65,null,"Produktív Vegyes"]
[1915,3,27,17,0,null,null,null,null,null,null,null,"90-21",16,90,21,"Flegmatikus","50-36",16,50,36,"Szentimentális","93-24",16,93,24,null,"Produktív Művészi"]
[1916,5,25,14,1,null,null,null,null,null,null,null,"50-83",17,50,83,"Szangvinikus","56-41",17,56,41,"Szentimentális","84-71",17,84,71,null,"Produktív Vegyes"]
[1917,8,24,12,0,null,null,null,null,null,null,null,"10-45",18,10,45,"Érzékeny kolerikus","31-14",18,31,14,"Hideg","29-41",18,29,41,null,"Gyakorlati Gondolkodó"]
[1918,11,23,10,0,null,null,null,null,null,null,null,"99-55",19,99,55,"Flegmatikus szangvinikus","99-54",19,99,54,"Egoisztikus vezető","26-71",19,26,71,null,"Gondolkodó Harmónikus"]
[1919,14,22,8,0,null,null,null,null,null,null,null,"30-52",20,30,52,"Közepesen szangvinikus","44-32",20,44,32,"Szentimentális","99-82",20,99,82,1,"Produktív Vegyes"]
[1920,16,20,5,1,null,null,null,null,null,null,null,"20-79",21,20,79,"Kolerikus","62-41",21,62,41,"Szentimentális","7-76",21,7,76,null,"Gondolkodó Harmónikus"]
[1921,19,19,3,0,null,null,null,null,null,null,null,"80-69",22,80,69,"Flegmatikus szangvinikus","25-18",22,25,18,"Hideg","14-35",22,14,35,null,"Gyakorlati Gondolkodó"]
[1922,22,18,1,0,null,null,null,null,null,null,null,"25-21",23,25,21,"Melankólikus","69-59",23,69,59,"Egoisztikus vezető","50-65",23,50,65,null,"Produktív Gondolkodó"]
[1923,2,17,32,0,null,null,null,null,null,null,null,null,null,null,null,null,"56-41",24,56,41,"Szentimentális","26-18",24,26,18,null,"Gyakorlati Művészi"]
[1924,4,15,29,1,null,null,null,null,null,null,null,null,null,null,null,null,"44-68",25,44,68,"Empatikus","29-88",25,29,88,1,"Produktív Gondolkodó"]
[1925,7,14,27,0,null,null,null,null,null,null,null,null,null,null,null,null,"37-41",26,37,41,"Empatikus","93-59",26,93,59,null,"Produktív Művészi"]
[1926,10,13,25,0,null,null,null,null,null,null,null,null,null,null,null,null,"56-73",27,56,73,"Szenvedélyes","57-82",27,57,82,null,"Produktív Gondolkodó"]
[1927,13,12,23,0,null,null,null,null,null,null,null,null,null,null,null,null,"44-73",28,44,73,"Empatikus","29-29",28,29,29,null,"Gyakorlati Vegyes"]
[1928,15,10,20,1,null,null,null,null,null,null,null,null,null,null,null,null,null,null,null,null,null,"29-88",29,29,88,1,"Produktív Gondolkodó"]
[1929,18,9,18,0,null,null,null,null,null,null,null,null,null,null,null,null,null,null,null,null,null,"71-47",30,71,47,null,"Produktív Művészi"]
[1930,21,8,16,0,null,null,null,null,null,null,null,null,null,null,null,null,null,null,null,null,null,"7-35",31,7,35,null,"Gyakorlati Gondolkodó"]
[1931,1,7,14,0,null,null,null,null,null,null,null,null,null,null,null,null,null,null,null,null,null,"64-59",32,64,59,null,"Produktív Vegyes"]
[1932,3,5,11,1,null,null,null,null,null,null,null,null,null,null,null,null,null,null,null,null,null,"29-82",33,29,82,1,"Produktív Gondolkodó"]
[1933,6,4,9,0]
[1934,9,3,7,0]
[1935,12,2,5,0]
[1936,14,0,2,1]
[1937,17,27,0,0]
[1938,20,26,31,0]
[1939,0,25,29,0]
[1940,2,23,26,1]
[1941,5,22,24,0]
[1942,8,21,22,0]
[1943,11,20,20,0]
[1944,13,18,17,1]
[1945,16,17,15,0]
[1946,19,16,13,0]
[1947,22,15,11,0]
[1948,1,13,8,1]
[1949,4,12,6,0]
[1950,7,11,4,0]
[1951,10,10,2,0]
[1952,12,8,32,1]
[1953,15,7,30,0]
[1954,18,6,28,0]
[1955,21,5,26,0]
[1956,0,3,23,1]
[1957,3,2,21,0]
[1958,6,1,19,0]
[1959,9,0,17,0]
[1960,11,26,14,1]
[1961,14,25,12,0]
[1962,17,24,10,0]
[1963,20,23,8,0]
[1964,22,21,5,1]
[1965,2,20,3,0]
[1966,5,19,1,0]
[1967,8,18,32,0]
[1968,10,16,29,1]
[1969,13,15,27,0]
[1970,16,14,25,0]
[1971,19,13,23,0]
[1972,21,11,20,1]
[1973,1,10,18,0]
[1974,4,9,16,0]
[1975,7,8,14,0]
[1976,9,6,11,1]
[1977,12,5,9,0]
[1978,15,4,7,0]
[1979,18,3,5,0]
[1980,20,1,2,1]
[1981,0,0,0,0]
[1982,3,27,31,0]
[1983,6,26,29,0]
[1984,8,24,26,1]
[1985,11,23,24,0]
[1986,14,22,22,0]
[1987,17,21,20,0]
[1988,19,19,17,1]
[1989,22,18,15,0]
[1990,2,17,13,0]
[1991,5,16,11,0]
[1992,7,14,8,1]
[1993,10,13,6,0]
[1994,13,12,4,0]
[1995,16,11,2,0]
[1996,18,9,32,1]
[1997,21,8,30,0]
[1998,1,7,28,0]
[1999,4,6,26,0]
[2000,6,4,23,1]
[2001,9,3,21,0]
[2002,12,2,19,0]
[2003,15,1,17,0]
[2004,17,27,14,1]
[2005,20,26,12,0]
[2006,0,25,10,0]
[2007,3,24,8,0]
[2008,5,22,5,1]
[2009,8,21,3,0]
[2010,11,20,1,0]
[2011,14,19,32,0]
[2012,16,17,29,1]
[2013,19,16,27,0]
[2014,22,15,25,0]
[2015,2,14,23,0]
[2016,4,12,20,1]
[2017,7,11,18,0]
[2018,10,10,16,0]
[2019,13,9,14,0]
[2020,15,7,11,1]
[2021,18,6,9,0]
[2022,21,5,7,0]
[2023,1,4,5,0]
[2024,3,2,2,1]
[2025,6,1,0,0]
[2026,9,0,31,0]
[2027,12,27,29,0]
[2028,14,25,26,1]
[2029,17,24,24,0]
[2030,20,23,22,0]
[2031,0,22,20,0]
[2032,2,20,17,1]
[2033,5,19,15,0]
[2034,8,18,13,0]
[2035,11,17,11,0]
[2036,13,15,8,1]
[2037,16,14,6,0]

{"sheet":"KronoMagyarázat","index":3,"n_rows":964,"n_cols":2,"rows_kept":964,"cut":false,"hidden":true,"merged":[]}
["Tipus","Magyarázat"]
["Melankólikus","FIZIKAI szint: Melankólikus"]
["Melankólikus","A két csakra értéke alacsony. Alacsony a Szakrális csakra értéke és alacsony a Gyomorcsakra értéke"]
["Melankólikus","is. (A két csakra összértéke kevesebb mint 70) "]
["Melankólikus","- Érzékeny "]
["Melankólikus","- Belső világában létezik "]
["Melankólikus","- Általában van példaképe. Ez azért fontos számára, mert nem bízik önmagában, és mindig kell neki"]
["Melankólikus","támaszték, ami felé tud haladni. "]
["Melankólikus","- Szégyenlős "]
["Melankólikus","- Új szituációban elveszik (Nem nagyon tudja, hogyan fogjon hozzá) "]
["Melankólikus","- Nehezen ismerkedik, idegen társaságban figyel, elemez, barátok közt kinyílik, humoros. "]
["Melankólikus","- Kevés barátja van, de azok mély barátságok "]
["Melankólikus","- Nem hisz az erőiben (inkább a gyengeségeire fókuszál, mint az értékeire) "]
["Melankólikus","- Befelé forduló, introvertált "]
["Melankólikus","- Fáradékony, néha enervált. Ez abból adódik, hogy kevés az energiája, amit fel tud használni. "]
["Melankólikus","- Inkább passzív pihenés való neki, mint az aktív pihenés. "]
["Melankólikus","- Csendes "]
["Melankólikus","- Magas követelményeket támaszt "]
["Melankólikus","- Érzékeny a kritikára (nem szereti, ha a gyengeségeire felhívják a figyelmet) "]
["Melankólikus","- Gyanakvó, nem tud felszabadult lenni, ez megint a kevés energiafelhasználással függ össze. "]
["Melankólikus","- Szenvedő alkat és ezt befelé teszi, nem kommunikálja ki a világ felé, hogy neki baja van."]
["Melankólikus","- Kevésbé tűnik aktívnak, inkább passzívnak tűnik "]
["Melankólikus","- Félénk "]
["Melankólikus","- Vonzódik a finom dolgokhoz "]
["Melankólikus","- Jó spirituális segítő "]
["Melankólikus"]
["Melankólikus","Melankolikus végletei: "]
["Melankólikus","- Egyáltalán nem hisz az erejében, nem hisz magában. "]
["Melankólikus","- Búskomor, túl érzékeny és társfüggő tud lenni. Minél kevesebb az összenergiája annál jobban nem"]
["Melankólikus","tud arra pazarolni energiát, hogy mosolyogjon. Enervált. "]
["Melankólikus","- Pesszimista, visszafogott, közömbös, határozatlan, nagyon nehezen hozza meg a döntéseit. "]
["Melankólikus","- Gyakran, többször kell pihennie, mint az átlagnak."]
["Melankólikus","- Legszívesebben magába zárkózik. Fizikai életereje, életenergiája az átlagtól alacsonyabb, ezért"]
["Melankólikus","számára fontos lenne a természettel való kapcsolódás. Nagyon ragaszkodik ahhoz, akit szeret."]
["Melankólikus","Az elhagyatottság érzés és a mellőzöttség érzése nagyon veszélyes számára. "]
["Melankólikus"]
["Melankólikus","A Melankólikus a munkában: "]
["Melankólikus","- Önálló / kitalálja és megvalósítja"]
["Melankólikus","- Jó szervező, aprólékos, ügyel a finom részletekre, el tud bíbelődni a végletekig, mindent finomít,"]
["Melankólikus","minden tökéletesre akar fejleszteni."]
["Melankólikus","- Munkavégzésében szakaszos, mivel kevés az energiája és töltekeznie kell. Fontosak számára a"]
["Melankólikus","körülötte lévő dolgok, tehát virágok, színek, kabalák egyéb tárgyak, amik az érzékszerveit stimulálják. "]
["Melankólikus","- Teljesítménybér nem való neki "]
["Melankólikus","- A szabályok is az irányítás stresszeli. "]
["Melankólikus","- Hajlamos néha az irracionális dolgokra, és ilyenkor nem gyakorlatias, mert túlvállalja magát. "]
["Melankólikus","- Gyakran a meg nem értett zseni típus. "]
["Melankólikus","- Mániás, mániái vannak "]
["Melankólikus","- Stresszes helyzetben, úgy tesz, mint aki büszke, erős és határozott, a \" majd én megmutatom\","]
["Melankólikus","esetleg fenyegetőző. Azonban nincs ahhoz ereje, hogy ebben az állapotban benne is maradjon."]
["Melankólikus","- Hajlamos lehet a szenvedélybetegségekre "]
["Melankólikus","- Hajlamos a depresszióra "]
["Melankólikus","- Rengeteg művész van, aki melankolikus alkat."]
["Melankólikus","- Oda kell figyelni rá, hogy ne húzza ki magát a fizikai világból, mert megkérdőjelezheti, hogy mi "]
["Melankólikus","értelme az életnek. Bele kell vonni a dolgokba, éreznie kell, hogy fontos, mert máskülönben elsiklik "]
["Melankólikus","és kicsúszik a lába alól a talaj. "]
["Melankólikus","- Nagyon sok odafigyelés kell neki, sokkal több önfegyelemre van szüksége ahhoz, hogy önállóan is"]
["Melankólikus","létezni tudjon. Ha pedig társaságban vagy alkalmazotti viszonyban dolgozik, akkor pedig olyan munka"]
["Melankólikus","való neki, ami aprólékos, nagyon precíziós, de kontroll alatt kell tartani, mert el tudnak nála folyni"]
["Melankólikus"," a dolgok. "]
["Melankólikus","- Nagyon megbízható munkaerő, amit rá bíznak, azt tökéletesen csinálja meg. "]
["Érzékeny kolerikus","FIZIKAI szint: Érzékeny Kolerikus"]
["Érzékeny kolerikus","- Apró dolgokban aktív, nem kitartó, mert a szakrális csakrája, vagyis a fékezője nagyon alacsony,"]
["Érzékeny kolerikus","tehát fékezhetetlen, ezáltal lobbanékony, türelmetlen. Minden nagyon sürgős neki. "]
["Érzékeny kolerikus","- Éles egyenes vonalú tettek jellemzik. "]
["Érzékeny kolerikus","- Nagyon aktív, de nincs elég energiája, ezért hamar kifárad. Állandóan tevékenykedik, de hamar"]
["Érzékeny kolerikus","kidől. Ezért nagyon sokszor hisztizik. Főleg egy ilyen kisgyermek, akit menet közben kell etetni,"]
["Érzékeny kolerikus","mindent túlfűtött energiával csinál és egyszer csak úgy elfárad, hogy az már hisztibe megy át és akár a "]
["Érzékeny kolerikus","hisztijébe alszik bele. "]
["Érzékeny kolerikus","- Határozott, kezdeményező, hajlamos a rizikóra, mert nincs fék rajta. "]
["Érzékeny kolerikus","- Halogató, sértődékeny, éles hangulatváltások jellemzik fizikailag. "]
["Érzékeny kolerikus","- Energikus, tevékeny, gyorsan bekapcsolódik, átvált, gyakran nem összeszedett, egyszerre csak egy "]
["Érzékeny kolerikus","dolgot tud csinálni. "]
["Érzékeny kolerikus","- Fáradékony, ingerlékeny, sikertelenség esetén nyomott "]
["Érzékeny kolerikus","- Nem tudatosan, de a beszélő partnerhez igazodik. "]
["Érzékeny kolerikus","- Nehéz feldolgoznia a kudarcot, az nagyon nyomottá tudja tenni őt. "]
["Érzékeny kolerikus","- Gyanakvó, magából indul ki, némelyikükre jellemző a szaggatott gyors beszéd. "]
["Érzékeny kolerikus","- Gyors problémamegoldó képessége van. Nem nagyon ragad bele a dolgokba. Rá mondják, hogy"]
["Érzékeny kolerikus","gyakran téved, de soha nem bizonytalan."]
["Érzékeny kolerikus"]
["Érzékeny kolerikus","- Kiegyensúlyozatlan, mozgékony, labilis, mindent nagyon gyorsan csinál. "]
["Érzékeny kolerikus","- Érzelmileg reaktív, állandóan reagál mindenre, és mindent magára vesz, és mindenre ugrik. Miért? "]
["Érzékeny kolerikus","Mert nincs helyben maradása. Tehát nincs az, hogy beleálljon a dologba, hanem mindig ugrásra kész."]
["Érzékeny kolerikus","Abban a pillanatban kell mindenre reagálnia. Mindent így él meg. Állandóan célokat tűz ki maga elé, "]
["Érzékeny kolerikus","és azt hajthatatlanul el akarja érni. "]
["Érzékeny kolerikus","- Állandóan dicsérni, ösztönözni kell, még ha nem is látszik rajta. Energetikailag majdnem olyan, mint "]
["Érzékeny kolerikus","a melankolikus, csak ugye neki nincs fékezője. Ezért nagyon érzékeny, mint egy melankolikus, de nincs"]
["Érzékeny kolerikus","kitartása abban, hogy ebben az érzékenységben benne is maradjon. Amíg egy melankolikus meg tud"]
["Érzékeny kolerikus","sértődni, és úgy is marad, addig egy érzékeny kolerikus nem ér rá, hogy ebben az érzékeny állapotban"]
["Érzékeny kolerikus","benne ragadjon, mert mozgékony és ki fogja magából ezt adni, mert nehezen tud lelassulni. "]
["Érzékeny kolerikus","Pont ezért dühös (akár a környezetére is), és valamire fognia kell, hogy lassíthasson. "]
["Érzékeny kolerikus"]
["Érzékeny kolerikus","Az érzékeny kolerikus a munkában: "]
["Érzékeny kolerikus","- Pillanatok alatt csinál dolgokat, de nem kitartó nem visel el intenzív hosszú ingereket. "]
["Érzékeny kolerikus","- A kötöttséget, a helyben maradást, nem bírja, az neki egyenlő a halállal. "]
["Érzékeny kolerikus","- Hajlamos az önszabotázsra "]
["Érzékeny kolerikus","- Még szubjektívebb típus, mint a kolerikus, mert neki a legkevesebb a helyben állása, mert nagyon"]
["Érzékeny kolerikus","kevés az összenergiája fizikai szinten, ezért nagyon hamar elfárad, mert közben meg, mindig mindent"]
["Érzékeny kolerikus","csinál. "]
["Érzékeny kolerikus","- Nem rugalmas "]
["Érzékeny kolerikus","- Nagyon rosszul méri fel saját magát. Nehéz neki azt felismerni, hogy ő ennyire hirtelen és gyors. "]
["Érzékeny kolerikus","Nála ez egy rossz tulajdonság. De ha netán, szembesítik ezzel, akkor nagyon meg tud sértődni. "]
["Érzékeny kolerikus","- És a sérelmeit sokáig tudja dédelgetni. "]
["Érzékeny kolerikus","- Teljesen le tudja magát meríteni "]
["Érzékeny kolerikus","- Ezért mert kimerült és enervált, kiszámíthatatlanná válik. "]
["Érzékeny kolerikus"]
["Érzékeny kolerikus","Normál reakciója: Ironikus, szarkasztikus, beszólogat, csipkelődik "]
["Érzékeny kolerikus"]
["Érzékeny kolerikus","Paradox reakciója: Sírás, depresszió => amit nem túl intenzív mozgással, sétával, úszással vezethet le."]
["Érzékeny kolerikus","Nála az a lényeg, hogy mozognia kell, mert nála a mozgás az, ami feloldja ezt a depressziót, "]
["Érzékeny kolerikus","feszültséget. "]
["Érzékeny kolerikus"]
["Érzékeny kolerikus","Stressze: magas hőfokú és negatív érzelmi töltésű szituációkban elgyengül, lefagy. Ha fáradt nem képes"]
["Érzékeny kolerikus","elaludni, nem tud ellazulni, nyughatatlan. Bolhából is képes elefántot csinálni. Addig spannolja magát,"]
["Érzékeny kolerikus","hogy teljesen kiborul. Felrobban, égeti magát, depresszióba esik, apátiába zuhan. Stressz után egész"]
["Érzékeny kolerikus","testen remeg, mert hiányzik az energia az ellazuláshoz."]
["Kolerikus","FIZIKAI szint: Kolerikus (Az \"Akarnok\")"]
["Kolerikus","- Mozgékony, visszatarthatatlan, gyors mozgású, darabos, szögletes. "]
["Kolerikus","Alvás helyett a sport pihentetőbb számára, vagyis az aktív pihenés többet jelent neki mint az alvás. "]
["Kolerikus","- állandó mozgás- és tevékenységi kényszere van. Tulajdonképpen széthajtja magát."]
["Kolerikus","- Neki nincs baja magával, de a környezete megőrül tőle, mert amit csinál, azt olyan erővel tudja tolni "]
["Kolerikus","és csinálni, ami más számára nem annyira tolerálható. "]
["Kolerikus","- Introvertált, saját ötletei irányítják."]
["Kolerikus","- Ingerlékeny, lobbanékony, türelmetlen "]
["Kolerikus","- Optimista, agresszív, nyugtalan, sértődékeny, hangulatember. "]
["Kolerikus","- Néha irreálisan ítéli meg magát, úgy gondolja az ő tempója a normális "]
["Kolerikus","- A világot hangulata szerint ítéli meg "]
["Kolerikus","- Szenvedélyes, nincs benne tolerancia \" az van, amit akarok és úgy ahogy én akarom\" "]
["Kolerikus","- Maximalista, végletes állapotok jellemzik, gyanakvó "]
["Kolerikus","- Eredményes, céltudatos, -> \"a cél szentesíti számára az eszközt\", nem tiszteli a szabályokat"]
["Kolerikus","- Tűzön-vízen keresztül, de eléri, amit akar. Amikor végez, akkor néz csak vissza, hogy kin mint "]
["Kolerikus","gázolt át "]
["Kolerikus","- Nem jó neki ellentmondani, kissé lenézi a környezetért, nem bírja a kritikát "]
["Kolerikus","- Nem szeret, és nem tud bocsánatot kérni: felesleges lelkizésnek éli meg "]
["Kolerikus","- Szeret mások helyett dönteni, impulzus alapján, ötletszerűen "]
["Kolerikus","- Döntései után a válasz, \"csak\" \" miért\" nem indokolt "]
["Kolerikus"]
["Kolerikus","Kolerikus a munkában: "]
["Kolerikus","- Jól kitalálja, hogy kinek mi való, jól ledirigálja a dolgokat. "]
["Kolerikus","- Használja az embereket, jó vezető, viszont munkatársait munkaeszköznek tekinti. "]
["Kolerikus","- Igazi munka alkoholista "]
["Kolerikus","- Kevés alvásigénye van, a mozgás pihenteti. "]
["Kolerikus","- Az egész élet egy nagy feladat, amit meg kell oldani, amit szívesen végez "]
["Kolerikus","- Akkor él. ha van cél és halad felé. Imádja a versenyhelyzeteket, illetve minden helyzetből, ahol lehet,"]
["Kolerikus","verseny csinál. Ez ösztönös és van mikor abszolút nem tudatos. "]
["Kolerikus","- Gyors, hajlamos a kapkodásra, teljes erőbedobással dolgozik, nem vacakol. "]
["Kolerikus","- Nem tiszteli a szabályokat, nem való neki a monoton munka. "]
["Kolerikus"]
["Kolerikus","- Normál reakciója: kiabál, gyorsan dönt, örökmozgó "]
["Kolerikus","- Paradox reakciója: depresszió, közönyösség, erő elvesztése. Ilyenkor ki van billenve. "]
["Kolerikus","- Stressze: monotonitás, vita. Legjobb védekezés a támadás! Tartós stresszben hiperaktívvá válik,"]
["Kolerikus","csapkod, agresszív, majd flegmatikussá válik. \"Hagyjon mindenki békén.\" Fél óra múlva úgy viselkedik,"]
["Kolerikus","mintha semmi sem történt volna. "]
["Szangvinikus","FIZIKAI szint: Szangvinikus (Az \"életörömmel teli\")"]
["Szangvinikus","- Megbízhatatlan, rengeteg dolgot megígér, de az új élmények felülírják. Ígéreteket tesz, a marketingje"]
["Szangvinikus","tökéletes, csak nem marad rá idő, hogy befejezze a dolgokat, mert felülírják a következő éppen "]
["Szangvinikus","aktuális dolgok."]
["Szangvinikus","- Erős, kiegyensúlyozott idegrendszerű, mozgékony, jó a mozgáskoordinációja. Énekel, dudorászik "]
["Szangvinikus","vagy táncol, mert van hozzá energiája."]
["Szangvinikus","- Gyorsan alakulnak ki az érzelmei, de az újabb izgalmas élmények elcsábíthatják. Érzelmileg nagyon"]
["Szangvinikus","gyorsan vált. "]
["Szangvinikus","- Ingerlékeny, lobbanékony, szeszélyes, és szenvedélyes, lendületes, pörgős "]
["Szangvinikus","- Beszédes, aktív, élénk, mozgékony, sok mindent csinál egyszerre "]
["Szangvinikus","- Türelmetlen, mindent előbb akar, mint ahogy az élet adja. Állandó időzavarban van, mert túl sok "]
["Szangvinikus","mindent tesz egyszerre, ezért az idő, mint olyan, nehezen kezelhető számára."]
["Szangvinikus","- Rugalmas, jó csapatjátékos "]
["Szangvinikus","- Kezdeményező, beszédes, közvetlen. Úgy tűnik, hogy mindenhez hozzá tud szólni, de nem sokáig"]
["Szangvinikus"," marad benne. Annyira nem érdekli ő az adott téma, hogy sokáig benne is maradjon, de mégis úgy"]
["Szangvinikus"," éli meg az ember, hogy jó volt vele beszélgetni, hozott egy kis szint a társalgásba "]
["Szangvinikus"]
["Szangvinikus","- Nyitott, sokoldalú, segítőkész, jó szándékú. A kolerikusakról például azt mondták, hogy nagyon "]
["Szangvinikus","intenzív életet élnek és akarnokok, addig a szangvinikusak, jó érzésűek. Nagyon jóérzésű emberek "]
["Szangvinikus","fizikailag több empátia szorul beléjük, jobb a belső indíttatásuk, mint egy kolerikusnak."]
["Szangvinikus","- Kommunikatív, közösségi ember, kifejező mimika jellemzi, hevesen gesztikulál "]
["Szangvinikus","- A szangvinikus ember egyedülálló a fizikai besorolás szempontjából, ugyanis képes a nyitott"]
["Szangvinikus"," párkapcsolatra, mert annyira megengedő és toleráns, de elvárja ő is a toleranciát. "]
["Szangvinikus"]
["Szangvinikus","Szangvinikus munkában: "]
["Szangvinikus","- Nem irányító típus, együttműködő, néha nehéz egy dolognál megmaradnia "]
["Szangvinikus","- Nem szereti az aprólékos egyhangú munkát "]
["Szangvinikus","- Kényszer és határidők nélkül mindent félbehagyni "]
["Szangvinikus","- Ingerszegény környezetben jól teljesít, ahol az új ingerek nem vonják el a figyelmét, hosszú távon "]
["Szangvinikus","azonban nem bírja az ingerszegény környezetet."]
["Szangvinikus","- Alkalmazkodik, gyorsan bekapcsol a munkába, gyorsan vált. "]
["Szangvinikus","- Szervező, intézkedő ember, nagyon jól tud kapcsolatokat kiépíteni, legjobb kis feladatokat rábízni, "]
["Szangvinikus","mert azt be tudja fejezni, és ettől sikerélménye lesz. Szereti, ha dicsérik. "]
["Szangvinikus"]
["Szangvinikus","Normál reakciója: azonnal reagál, nevet. Mindenhez jókedvvel tud nekiállni. "]
["Szangvinikus"]
["Szangvinikus","Paradox reakciója: sír (ritkán) de utána mozognia kell (nevetés, agresszió, sírás, mozgás) "]
["Szangvinikus"]
["Szangvinikus","Stresszeli: monotonitás, bezártság, kevés külső inger, mindig izgalomra van szüksége! Átmenetileg "]
["Szangvinikus","ilyenkor melankolikussá válik."]
["Szangvinikus"]
["Szangvinikus","Számára kevésbé megterhelő az élet, még a jég hátán is megél. Mindenhez van humorérzéke, "]
["Szangvinikus","kitartása, mindenbe bele tud állni, és igazából egy központi személyiséggé tud válni."]
["Szangvinikus","Szangvinikus nőnek szangvinikus férfi kell! Nem akarja megváltani a világot, elfogadja olyannak "]
["Szangvinikus","amilyen. A szangvinikus nő körül csak úgy zsonganak a más temperamentumú férfiak, mivel ő az "]
["Szangvinikus","egyetlen, aki elviseli a tőle olyannyira különböző típusokat. "]
["Szangvinikus","Lehet, hogy túlsúlyos, mert a gyomor csakrája nagy, tehát enni tud. "]
["Szangvinikus","Jó kedélyű, tudja nagy kanállal enni az élet nagy dolgait, jól érzi benne magát, van hozzá humorérzéke, "]
["Szangvinikus","energiája. "]
["Szangvinikus","Senkit nem szól le, nem szól be, mert elég nagy amplitúdón mozog."]
["Szangvinikus"]
["Flegmatikus szangvinikus","FIZIKAI szint: Flegmatikus szangvinikus"]
["Flegmatikus szangvinikus","- A legerősebb fizikumú ember. Békés, végtelenül türelmes, energikus és kitartó, mindenhez jó pofát "]
["Flegmatikus szangvinikus","tud vágni, és jó a humorérzéke."]
["Flegmatikus szangvinikus","- Igazi áldás a világnak "]
["Flegmatikus szangvinikus","- Kevésbé stresszelhető, mozgékonyabb, mint a flegmatikus "]
["Flegmatikus szangvinikus","- Kiegyensúlyozott idegrendszerű "]
["Flegmatikus szangvinikus","- Nem zavarja az idő és a rendtényező"]
["Flegmatikus szangvinikus","- Nyugodt, következetes, tud várni, óvatos, visszafogott lenni, az elkezdett tevékenységet véghez viszi.  "]
["Flegmatikus szangvinikus"]
["Flegmatikus szangvinikus","- Könnyen visszatartja kitöréseit, állandó kapcsolataiban "]
["Flegmatikus szangvinikus","- Szereti a rendet, sőt szüksége van rá, a cél elérésében kitartó, néha makacs "]
["Flegmatikus szangvinikus","- Vidám, energikus, élet szerető, tevékeny. Szinte kibillenthetetlen "]
["Flegmatikus szangvinikus","- Könnyen viseli a sikertelenséget, kellemetlenségeket "]
["Flegmatikus szangvinikus","- Levonja a tanulságot, kommunikatív, nyitott, közvetlen, jókedvű "]
["Flegmatikus szangvinikus","- Beszéde hangos, tisztán artikulál, kifejezően gesztikulál. "]
["Flegmatikus szangvinikus"]
["Flegmatikus szangvinikus","Flegmatikus szangvinikus - munkában:"]
["Flegmatikus szangvinikus","- Kicsit lassabb, mint a szangvinikus, de jól végzi a munkáját. Lassan de biztosan. "]
["Flegmatikus szangvinikus","- Ő a legkiegyensúlyozottabb ember, munkatárs. Neki a legszélesebb a tolerancia képessége."]
["Flegmatikus szangvinikus","mindenkit 100%-ban átlát, befogad olyannak amilyen. Senkit nem bánt meg. "]
["Flegmatikus szangvinikus","- Van ideje végig gondolni, és nagy teherbírása van a dolgok végig vitelére, nem sieti el a dolgokat "]
["Flegmatikus szangvinikus","- Kitartó, munka szerető, megőrzi az önfegyelmét a váratlan bonyolult szituációkban "]
["Flegmatikus szangvinikus","- Hosszabb távon is terhelhető "]
["Flegmatikus szangvinikus","- Van kitartása, de mozgatható is "]
["Flegmatikus szangvinikus"]
["Flegmatikus szangvinikus","Normál reakciója: válaszol a kérdésre, de kicsit hosszabb a reakcióideje "]
["Flegmatikus szangvinikus"]
["Flegmatikus szangvinikus","Paradox reakciója: agresszív, rögtön válaszol, bekapja a fejed. De hamar lecsillapodik. "]
["Flegmatikus szangvinikus","Félelmekre a reakciója: apróbb félelmeknek ellenáll, de a nagy félelmek lemerevítik, leblokkol. "]
["Flegmatikus szangvinikus"]
["Flegmatikus szangvinikus","Hagyni kell neki ilyenkor egy kis időt egyedül lenni, hadd gondolkodjon és újra rá lehet térni később. "]
["Flegmatikus szangvinikus"]
["Flegmatikus szangvinikus","Nyugodt, békés, de mégis van aktivitása. A flegmatikus megbízhatósága és a kolerikus-szangvinikus"]
["Flegmatikus szangvinikus"," rugalmassága ötvöződik benne."]
["Flegmatikus","FIZIKAI szint: Flegmatikus"]
["Flegmatikus","- Nehezen ingerelhető, türelmes, hidegvérű - Passzív nem látszik rajta a lelkesedés, közönyösnek tűnhet "]
["Flegmatikus","- Viszont céltudatos, pontos, igyekvő, gondolkodó, tud várni, visszafogott, kitartó "]
["Flegmatikus","- Befogadja a világot olyannak, amilyen, előítélet nélkül. Az igazságtalanságot viszont nem veszi be a"]
["Flegmatikus","gyomra, ezt rosszul tűri. Egy hazugság simán kiveri a biztosítékot nála, méltatlanság vagy igazságtalan"]
["Flegmatikus","helyzet teljesen kiborítja "]
["Flegmatikus","- Megbízható, békeszerető, nyugalmat áraszt, hallgatag, alapos "]
["Flegmatikus","- Nem konfrontálódik, lassan fejlődő érzelmei tartósak, és alig nyilvánítja ki azokat. Hűséges, szereti "]
["Flegmatikus","az állandóságot, a napi rutin, a megszokás szükséges számára."]
["Flegmatikus","- Erős idegrendszerű, többnyire belső világában él, következetes "]
["Flegmatikus","- Külső hatásokra általában lassan reagál, ezért szenvtelenek, tehát közönyösnek tűnhet"]
["Flegmatikus","- Mozgáskoordinációja fejletlen"]
["Flegmatikus","- Komfort igénye magas, családcentrikus, a családi béke nagyon fontos számára. "]
["Flegmatikus","- A dolgokat olyannak látja amilyen, jó önismerete van "]
["Flegmatikus","- Kevéssé aktív, nyugodt, az emésztéshez is hosszabb időre van szüksége, lassan eszik. "]
["Flegmatikus"]
["Flegmatikus","Flegmatikus a munkában: "]
["Flegmatikus","- Megbízható, mert nehezen vált. Alkalmazott szempontjából, tipikusan jó alkalmazott a flegmatikus. "]
["Flegmatikus","Őt beültetik az irodába, és ő el van a saját világában. "]
["Flegmatikus","- Amit elkezd, azt befejezi. Nem pazarolja erejét feleslegesen. "]
["Flegmatikus","- Igyekvő, praktikus dolgokban jól teljesít "]
["Flegmatikus","- Megőrzi az önuralmát, nehéz kihozni a béketűrésből "]
["Flegmatikus","- Hűséges szereti az állandóságot "]
["Flegmatikus","- Szigorúan ragaszkodik a munkarendjéhez. "]
["Flegmatikus","- A gyors, rövid határidejű munkát nem tudja tartani, sürgetésre stresszesé válik. "]
["Flegmatikus","- Átláthatóságra és biztonságra van szüksége"]
["Flegmatikus","- Kitartó nagy munkabírású "]
["Flegmatikus","- Mindenhez extra sok időre van szüksége "]
["Flegmatikus","- Az elismerő szavak fontosak neki "]
["Flegmatikus"]
["Flegmatikus","Normál reakció: nyugodt, többször meg kell kérdezni tőle dolgokat, nem reagál azonnal. "]
["Flegmatikus","Esetenként meg kell érinteni, hogy észrevegye, hogy hozzá beszélnek. "]
["Flegmatikus"]
["Flegmatikus","Paradox reakció: robban, azután egyedül kell maradnia. Félelemre bezárkózik, lemerevedik, csak "]
["Flegmatikus","az első ijedtség után kezd el gondolkodni "]
["Flegmatikus"]
["Flegmatikus","Stresszeli: az aktivitást igénylő szituációk, ugráltatás, az idő és a rend felborulása, tervezés és a döntés"]
["Flegmatikus","kényszer. Fél a változástól. Siettetés, időhiány kibillenti. Még jobban lelassul, felületesség válik,"]
["Flegmatikus","tehetetlenségében értelmetlen, hisztérikus kapkodásba kezd."]
["Közepesen szangvinikus","FIZIKAI szint: Közepes szangvinikus: (egyszerre minden típus és egyik sem)"]
["Közepesen szangvinikus","- Egy nagyon érdekes, jó fej típus a közepes szangvinikus, az akire azt lehet mondani, hogy a"]
["Közepesen szangvinikus","körön kívüli, mert nem tartozik talán, ha úgy tetszik semmihez. Úgy szokták mondani, hogy fizikailag"]
["Közepesen szangvinikus","az ilyen szülött, nem a saját életfeladatát akarja megvalósítani, hanem abban asszisztál, hogy más"]
["Közepesen szangvinikus","meg tudja valósítani a sajátját. "]
["Közepesen szangvinikus","- Minden egyes személyiségtípussal jól kijön. Ahová kell, oda hajlik, nem konfrontálódik, nem"]
["Közepesen szangvinikus","vitatkozik. Végzi a saját dolgát, megfelelő humorérzékkel, megfelelő beleállással. "]
["Közepesen szangvinikus","- Tulajdonképpen megtalálhatunk benne minden típust, de igaziból egyik sem, mert mindenből van"]
["Közepesen szangvinikus","benne egy kicsi. Ezért nincs benne nagy ellenállás, hogy konfrontálódjon. Ezért tud bármelyik"]
["Közepesen szangvinikus","személyiségtípushoz orientálódni. De nincs akkora kitartása sem, mint mondjuk egy igazi"]
["Közepesen szangvinikus","szangvinikusnak, hogy végig tudja csinálni a dolgokat, mert ahhoz meg kevés az összenergiája. "]
["Közepesen szangvinikus"]
["Közepesen szangvinikus","- Vidám, életszerető, ügybuzgó emberke, "]
["Közepesen szangvinikus","- Aki gyakran félbehagyja a megkezdett dolgait "]
["Közepesen szangvinikus","- Hajlamos önmaga túlértékelésére "]
["Közepesen szangvinikus","- Nem kitartó, szalmaláng természetű, gyorsan vált "]
["Közepesen szangvinikus","- Befolyásolható, hat rá a divat, a társaság, ahol éppen tartózkodik "]
["Közepesen szangvinikus","- Szórakozott "]
["Közepesen szangvinikus","- Igazi körön kívüli "]
["Közepesen szangvinikus","- Azzal amit ő beteljesít, másoknak segít, mindig mindenkinek meg akar felelni, ami persze lehetetlenség "]
["Közepesen szangvinikus","- Fontos hogy ki/mi van körülötte, mert az ad neki jó kis határt, tehát az ad neki keretet, ha egy erős"]
["Közepesen szangvinikus"," vagy erősebb temperamentumú egyén van mellette. "]
["Közepesen szangvinikus"]
["Közepesen szangvinikus","Közepes szangvinikus a munkában: "]
["Közepesen szangvinikus","- Nem kitartó, nem terhelhető hosszútávon "]
["Közepesen szangvinikus","- Nem nagyon alapos "]
["Közepesen szangvinikus","- Bármire képes, de tartósan benne maradni semmiben nem tud, mert nincs hozzá elég energiája "]
["Közepesen szangvinikus","- Ha nincs motivációja, nehezen hoz ki magából bármit is "]
["Közepesen szangvinikus","- Nehezen viseli az egyhangú, monoton, alantas munkát "]
["Közepesen szangvinikus","- Kampányszerű, átgondolatlan "]
["Közepesen szangvinikus","- Nehéz kiszámítani, hogy milyen irányba fordul: szokásos szituációkban szangvinikus, agresszív"]
["Közepesen szangvinikus"," helyzetekben érzékeny kolerikus, vagy akár melankolikus is lehet, neveltetéstől függően "]
["Közepesen szangvinikus"]
["Közepesen szangvinikus","Normális reakciója: az alkalmazkodás "]
["Közepesen szangvinikus"]
["Közepesen szangvinikus","Paradox reakciója: ellenállás, visszavág, majd depresszióba esik. Hosszú távon nem alkalmas"]
["Közepesen szangvinikus","felsővezetőnek, csak ha maga mellé vesz egy erőskezű segítőt. Jól tud közvetíteni. "]
["Közepesen szangvinikus","De egyébként egy nagyon jó fej ember, mindenkire mosolyog, minden helyzetet mosolyogva él meg. "]
["Közepesen szangvinikus","Nagyon jó a humora, nem ragad bele a dolgokba."]
["Hideg"]
["Hideg","ÉRZELMI szint: Hideg: (érzékeny)"]
["Hideg","Mindkét mutató alacsony"]
["Hideg","Itt mindkét csakra értéke, meglehetősen alacsony. Az ilyen típusú emberek nem ridegek, nem"]
["Hideg","érzéketlenek, hanem egyszerűen annyira kis mimózák, annyira alacsony az érzelmi tűréshatáruk, hogy "]
["Hideg","egyszerűen nincs erejük nagy reakciókra. "]
["Hideg","- A hideg, érzékeny, porcelán törékenységű léleknél, igaziból egy nagyon befelé forduló alkatot kell"]
["Hideg","elképzelnünk. "]
["Hideg","- Lelkileg sérülékeny, feszült. Inkább magába fojtja az érzelmeit "]
["Hideg","- Fél az érzelmeivel való szembesüléstől, ezért érzelmi elégedetlensége, pszichoszomatikus tünetek"]
["Hideg","formájában jelenik meg "]
["Hideg","- Érzelmei kimutatását veszélyesnek érzi "]
["Hideg","- Magában rágódik "]
["Hideg","- Amit kifelé mutat, abból nehéz megállapítani, hogy mi zajlik benne. "]
["Hideg","- Kiegyensúlyozottnak tűnik, ezért a kívülálló, az arcából kiindulva nem veszi észre, hogy mi is zajlik"]
["Hideg","benne, mit érez "]
["Hideg","- Nincsenek érzelmi tartalékai. Egyáltalán nincs neki "]
["Hideg","- Intenzív érzelmei vannak, de csak belül zajlanak "]
["Hideg","- Rossz stressz tűrő, racionális, távolságtartó "]
["Hideg","- Erős érzelmektől menekül "]
["Hideg","- Másoktól várja, hogy kitalálják, mi lenne neki jó, de ha nem sikerül, akkor megbántódik "]
["Hideg","- Sokszor azt az embert választja, aki őt szereti, és nem azt, akibe Ő szerelmes "]
["Hideg","- Művészlélek "]
["Hideg","- Öngyilkos hajlamú lehet "]
["Hideg","- Jó terapeuta, mert nem veszi magára mások problémáját "]
["Hideg","- Nehezen viseli az erőteljes megnyilvánulást, ordítozást. Egy olyan családban, ahol egy hideg gyermek"]
["Hideg","van, és mondjuk két hevesebb, akár szenvedélyes szülővel él együtt, akkor ott, nagyon, nagyon "]
["Hideg","nehezen viseli a hideg gyermek az érzelmi kitöréseket. Ilyenkor teljesen vissza van húzódva, össze van"]
["Hideg","zavarodva "]
["Hideg","- Könnyen ki lehet kerülni a szívéből és ezt el sem fogja mondani "]
["Hideg","- Ha már ő ordít akkor nagy baj van "]
["Hideg","- Szüksége van társra, az alkalmi kapcsolatot nem jók számára "]
["Hideg","- Egy hideg – melankolikusnak, elég csak a plátói szerelem "]
["Hideg","- A hideg-szangvinikus egy tipikus stylist, megteremti a változatosságot a lakásban és az öltözködésben "]
["Hideg","Munka: biztonságos környezetben magabiztos, alapos. Jó munkavégző, figyel a részletekre. "]
["Hideg","Stresszre: fenyegetővé, makacs önfejűvé válik "]
["Önfeláldozó"]
["Önfeláldozó","ÉRZELMI szint: Önfeláldozó"]
["Önfeláldozó","A Te oldal magasabb jóval"]
["Önfeláldozó","- Kevésbé van tisztában saját érdekeivel. Könnyen lemond a komfortról, "]
["Önfeláldozó","- Nemes célok érdekében önzetlen, önmegtagadó, inkább a közösségi szellem nevében cselekszik, "]
["Önfeláldozó","mint saját érdekében "]
["Önfeláldozó","- Másokért él, alkalmazkodik, alulértékeli magát "]
["Önfeláldozó","- Mindenkinek ad, de nem fogad el segítséget "]
["Önfeláldozó","- Érzelmei, nem érthető meg az egoista szemszögéből "]
["Önfeláldozó","- Ha egy elv megfertőzi, fanatikussá válik "]
["Önfeláldozó","- Figyelmen kívül hagyja saját szükségleteit, így nem is tudja mit is akar."]
["Önfeláldozó","Azt viszont tudja, hogy másnak mire van szüksége "]
["Önfeláldozó","- Gondoskodó, segítőkész, képes együtt érezni bárkivel "]
["Önfeláldozó","- Túlvállalja magát, mindent magára vállal, nem ismeri a korlátait "]
["Önfeláldozó","- Elfelejti, hogy a másik embert, csak akkor tudjuk szeretni, ha magunkat is képesek vagyunk "]
["Önfeláldozó","- Gondoskodó, nem tud egyedül lenni, kell neki a kapaszkodó "]
["Önfeláldozó","- Kell neki valaki, akinek tud adni "]
["Önfeláldozó","- Alacsony energiája van, könnyen szívére vesz dolgokat, nehezen dolgozza fel a csalódás sérüléseit "]
["Önfeláldozó","- Érzelmileg nem terhelhető "]
["Önfeláldozó","- Munka: segítő tevékenységek, például tűzoltó. "]
["Önfeláldozó","(Az önfeláldozó-kolerikus, a legjobb kreatív munkás)"]
["Empatikus"]
["Empatikus","ÉRZELMI szint: Empatikus"]
["Empatikus","A Te oldal magasabb, de közel egyforma mutatók"]
["Empatikus","- Érzelmileg kiegyensúlyozott harmonikus lelkivilágú "]
["Empatikus","- Másokkal együtt érző, de egészséges mértékben önző "]
["Empatikus","- Képes kifejezni az érzelmeit, de kontrollálni is tudja azokat "]
["Empatikus","- Nagy lelke és szíve van, át tudja adni a szeretetét "]
["Empatikus","- Állandóan segítőkész, ő a lelki szemetesláda "]
["Empatikus","- Másokat helyez előtérbe, de racionálisabb, mint az önfeláldozó "]
["Empatikus","- Ismeri saját korlátait a segítésben "]
["Empatikus","- Arany középút jellemzi, mert tudja szeretni magát, ezáltal másokat is "]
["Empatikus","- Nem engedi, hogy negatív érzés hatalmasodjon el rajta "]
["Empatikus","- Az önfeláldozónál nagyobb tartalékai vannak, ezért nem károsodik "]
["Empatikus","- Képes a szeretetét kimutatni, neki van a legtöbb barátja, mindenki neki panaszkodik "]
["Empatikus","- Ha empatikus emberrel találkozunk, olyan mintha régóta ismernénk "]
["Empatikus","- Munka: Önálló munkára alkalmas, nehezen vállalja fel a konfliktust, de hamarabb mond nemet,"]
["Empatikus","mint az önfeláldozó "]
["Szentimentális"]
["Szentimentális","ÉRZELMI szint: Szentimentális (érzékeny, egoisztikus)"]
["Szentimentális","Az Én oldal magasabb, de közel azonos mutatók"]
["Szentimentális","- Érzékeny hamar megsértődik, de fel is dolgozza a problémáit "]
["Szentimentális","- A szerethető egoisztikus. Csak a vágya van meg arra, hogy több legyen neki, de nem harcol érte "]
["Szentimentális","- Fontos számára a saját tulajdon, de nem lételeme "]
["Szentimentális","- Kicsit jobban belemegy a játszmába "]
["Szentimentális","- Nem annyira érdekember, mint az egoisztikus, elég csak egy kis motiváció. Szerethetőbb "]
["Szentimentális","- Fontosabb magának, mint a környezete "]
["Szentimentális","- Sok energiája van, szeret szerepelni, nincs lámpaláza "]
["Szentimentális","- Úgy fejezi ki az érzelmeit, hogy másoknak imponáljon "]
["Szentimentális","- Belső érzelemgazdagság jellemzi "]
["Szentimentális","- Többször kell találkozni vele, hogy kimutassa érzéseit (elsőre mogorvának tűnhet) "]
["Szentimentális","- Szűk baráti körben nagyon jó barát, de sok ember között, nem könnyen mutatja meg magát "]
["Szentimentális","- Sértődős, de megbocsát. Sír, ha feszültség éri "]
["Szentimentális","- Minden emléket elrak, tárgyakban raktározza érzelmi életét, és ez neki nagyon fontos. "]
["Szentimentális","Fájdalmat érez, ha elveszíti ezeket "]
["Szentimentális","- Manipulál"]
["Egoisztikus vezető"]
["Egoisztikus vezető","ÉRZELMI szint: Egoisztikus vezető"]
["Egoisztikus vezető","Magas az összenergia, és az Én oldal magasabb"]
["Egoisztikus vezető","- Önérvényesítő - Szereti kiharcolni, ami az övé "]
["Egoisztikus vezető","- Hangsúlyosan én központú, emiatt nagyok az érzelmi tartalékai "]
["Egoisztikus vezető","- A legkevésbé sérülékeny típus "]
["Egoisztikus vezető","- Erős, öntudatos, mind a maga, mind a körülötte élő emberek érdekeit védi "]
["Egoisztikus vezető","- Általában sikeres, legfőbb ereje a magabiztosságában rejlik "]
["Egoisztikus vezető","- Nem tud és nem is akar alkalmazkodni, emiatt a környezetét változtatja meg "]
["Egoisztikus vezető","- Mindig ő marad talpon, másokkal szemben "]
["Egoisztikus vezető","- Akik nem fogadják el, azokat elkerüli, vagy agresszívan viszonyul hozzájuk "]
["Egoisztikus vezető","- Egészséges, erős, és meg is tudja őrizni az egészségét"]
["Egoisztikus vezető","- Magának és szeretteinek nem okoz kárt "]
["Egoisztikus vezető","- Ha elismerik vezérségét, nem mutatja ki agresszivitását "]
["Egoisztikus vezető","- Magasra emelkedhet, de nagyot is eshet "]
["Egoisztikus vezető","- Ha hízelegnek neki, nagyon adakozó, szeret alattvalókat gyűjteni "]
["Egoisztikus vezető","- Csak neki lehet igaza, nem ismeri el, ha hibázik, könyörtelen, megbánt másokat "]
["Egoisztikus vezető","- Érdekember, számító "]
["Egoisztikus vezető","- Az egoisztikus - kolerikus vezető a tipikus elnyomó főnök, "]
["Egoisztikus vezető","- az egoisztikus - szangvinikus ember \"arany ember\", ha úgy látja, hogy haszna van belőle "]
["Egoisztikus vezető","- Munka: vagy főnök vagy önálló dolgozó (ha haszna van belőle motivált, ha nem, nem érdekli) "]
["Szenvedélyes"]
["Szenvedélyes","ÉRZELMI (Intellektuális) szint: Szenvedélyes"]
["Szenvedélyes","Mindkét mutató magas, de a Te oldal magasabb"]
["Szenvedélyes","- Azonnal lereagál mindent "]
["Szenvedélyes","- Érzelmileg olyan, mint a szangvinikus fizikailag "]
["Szenvedélyes","- Mimikája kifejező extrovertált "]
["Szenvedélyes","- Emocionálisan reaktív, szuper energikus "]
["Szenvedélyes","- Érzelmileg egyik végletből a másikba esik "]
["Szenvedélyes","- Nem tud közömbös lenni "]
["Szenvedélyes","- Kapcsolatának fokozatai: túl nagy vonzalom - szenvedély - kötöttség – rombolás "]
["Szenvedélyes","- Nem tudja a szeretet határát, nála birtoklássá, majd féltékenységé változik "]
["Szenvedélyes","- Szeretet és gyűlölet egyszerre jelenik meg "]
["Szenvedélyes","- Benyomást kell gyakorolni a világra "]
["Szenvedélyes","- Nagy nevetések, nagy sírások => végletes érzelmek embere "]
["Szenvedélyes","- Előbb cselekszik, aztán gondolkodik "]
["Szenvedélyes","- Megbízhatatlan, hirtelen, nem kiszámítható "]
["Szenvedélyes","- Nem való neki az egyedüllét mivel túl kevés az inger "]
["Szenvedélyes"]
["Szenvedélyes","A szenvedélyes - melankolikus jó színész lehet, mert meg tudja élni az érzelmeit. "]
["Szenvedélyes","A szenvedélyes - kolerikus ön és közveszélyes lehet, a hirtelen impulzív cselekvései miatt. "]
["Szenvedélyes","Betegség: Erős balesetveszély, az impulzív cselekvései miatt..."]
["Gyakorlati Művészi"]
["Gyakorlati Művészi","INTELLEKTUÁLIS kontúr: Gyakorlati Művészi"]
["Gyakorlati Művészi","Itt a 6. Harmadik szem csakra a domináns. ilyenkor a gondolkodás nőies, Yin, intuitív típusú "]
["Gyakorlati Művészi","Leginkább a megérzéseire hallgat. Spirituális tanácsadás illik ehhez a típushoz. Tanulási módszere a"]
["Gyakorlati Művészi","megfigyelés és a visszaemlékezés, képi látással idézi fel a dolgokat. Inkább olvas, mert nagyon jól el "]
["Gyakorlati Művészi","tudja képzelni a könyvben leírtakat. Könnyen megtanul idegen nyelveket."]
["Gyakorlati Művészi"]
["Gyakorlati Művészi"]
["Gyakorlati Művészi","A marker számok összege, vagyis a 6.és a 7. csakra együttes értéke 100 alatt van, és mindkét "]
["Gyakorlati Művészi","érték aránylag alacsony. "]
["Gyakorlati Művészi"]
["Gyakorlati Művészi","Praktikus analógia szerint működik. Az energia-megmaradás, a fizikai világ törvényei szerint él: "]
["Gyakorlati Művészi","nem lehet többet kapni, mint ami van. Az élettől tanul nem a könyvekből. Okos, de a saját"]
["Gyakorlati Művészi","értelmezése szerint. Mindent akkor csinál, ha látja, hogy rövid idő alatt, pozitív eredményt kap."]
["Gyakorlati Művészi","Felesleges lépést nem tesz. Nem tud olyan munkát elképzelni, ami a távoli jövőben hoz csak eredményt."]
["Gyakorlati Művészi","Saját megszokott módszere van a fejlődésre. A földön él, átlagos ember. "]
["Gyakorlati Művészi","A boldog gyakorlati ember nem akar fejlődni. Gyakorlatias típusú tanuló is, jól meg tudja jegyezni a"]
["Gyakorlati Művészi","dolgokat, de otthon egyszer át kell ismételni az órai anyagot. Neki még többet kell ismételni, vissza "]
["Gyakorlati Művészi","kell kérdezni tőle az órán tanultakat. A gyakorlatias, válaszadás előtt, akár fel is lapoz egy tankönyvet,"]
["Gyakorlati Művészi","hiszen ő szeret megalapozott, biztos lenni a válaszaiban. Lassabban vág az esze, mint egy produktívnak."]
["Gyakorlati Művészi","Jót tesz neki, ha sablonokat, jegyzeteket ír. "]
["Gyakorlati Művészi"]
["Gyakorlati Művészi","- A baloldali mutató magasabb értékű "]
["Gyakorlati Művészi","- A képzelőerő és a képérzék a domináns, de jellegzetesen nem kreatív típus. "]
["Gyakorlati Művészi","- Inkább a jelenben él. Itt és most, amit meg kell csinálni, azt megcsinálja, de nem túl kreatív. "]
["Gyakorlati Gondolkodó"]
["Gyakorlati Gondolkodó","INTELLEKTUÁLIS kontúr: Gyakorlati Gondolkodó"]
["Gyakorlati Gondolkodó","Itt a 7. Koronacsakra értéke a magasabb. Ilyenkor a gondolkodás férfias, Yang típusú. "]
["Gyakorlati Gondolkodó"]
["Gyakorlati Gondolkodó","A konkrét szabályokat, az analizálást szereti. Praktikus logikus gondolkodás. Konkrét feladatokban"]
["Gyakorlati Gondolkodó","ügyes. A művészi típus ellentéte, ezért kevésbé meditatív, azonnal racionalizál, mindent végig kell hogy"]
["Gyakorlati Gondolkodó","gondoljon. Logikai alapon dönt. Kézzelfogható tevékenységet szeret végezni. És a kézzelfogható"]
["Gyakorlati Gondolkodó","eredményeket értékeli. Az azonnali eredmények fontosak számára. Számára a megfoghatatlan dolgok,"]
["Gyakorlati Gondolkodó","olyanok mintha nem is léteznének. Tanulása: jegyzetelés, hangfelvétel. A gondolkodó típus inkább filmet"]
["Gyakorlati Gondolkodó","néz, könyvet olvas, mert ezzel pihenteti az agyát, nem kell gondolkodnia az elképzelésen, készen kapja. "]
["Gyakorlati Gondolkodó"]
["Gyakorlati Gondolkodó","A marker számok összege, vagyis a 6.és a 7. csakra együttes értéke 100 alatt van, és mindkét "]
["Gyakorlati Gondolkodó","érték aránylag alacsony. "]
["Gyakorlati Gondolkodó"]
["Gyakorlati Gondolkodó","Praktikus analógia szerint működik. Az energia-megmaradás, a fizikai világ törvényei szerint él: "]
["Gyakorlati Gondolkodó","nem lehet többet kapni, mint ami van. Az élettől tanul nem a könyvekből. Okos, de a saját értelmezése"]
["Gyakorlati Gondolkodó","szerint. Mindent akkor csinál, ha látja, hogy rövid idő alatt, pozitív eredményt kap."]
["Gyakorlati Gondolkodó","Felesleges lépést nem tesz. Nem tud olyan munkát elképzelni, ami a távoli jövőben hoz csak eredményt."]
["Gyakorlati Gondolkodó","Saját megszokott módszere van a fejlődésre. A földön él, átlagos ember. "]
["Gyakorlati Gondolkodó","A boldog gyakorlati ember nem akar fejlődni. Gyakorlatias típusú tanuló is, jól meg tudja jegyezni a"]
["Gyakorlati Gondolkodó","dolgokat, de otthon egyszer át kell ismételni az órai anyagot. Neki még többet kell ismételni, vissza "]
["Gyakorlati Gondolkodó","kell kérdezni tőle az órán tanultakat. A gyakorlatias, válaszadás előtt, akár fel is lapoz egy tankönyvet,"]
["Gyakorlati Gondolkodó","hiszen ő szeret megalapozott, biztos lenni a válaszaiban. Lassabban vág az esze, mint egy produktívnak."]
["Gyakorlati Gondolkodó","Jót tesz neki, ha sablonokat, jegyzeteket ír. "]
["Gyakorlati Gondolkodó"]
["Gyakorlati Gondolkodó","Mindkét mutató alacsony, de a 7. csakra (logika) értéke magasabb. "]
["Gyakorlati Gondolkodó"]
["Gyakorlati Gondolkodó","Jó kézügyesség, fejlett manuális képesség, konkrét cselekvés végrehajtása jellemző rájuk. "]
["Gyakorlati Gondolkodó","Szereti megfoghatóvá tenni a tapasztalatait. "]
["Gyakorlati Vegyes"]
["Gyakorlati Vegyes","INTELLEKTUÁLIS kontúr: Gyakorlati Vegyes"]
["Gyakorlati Vegyes","Itt a 6. csakra és a 7. csakra közötti eltérés nem túl magas, nincs nagy különbség. "]
["Gyakorlati Vegyes"]
["Gyakorlati Vegyes","Kiegyensúlyozott típus, tehát a logika és az intuíció nagyjából egálban van. Tud logikus és intuitív is "]
["Gyakorlati Vegyes","lenni, az adott szituáció fogja meghatározni, hogy merre billenjen. A vegyes típusú gyereket (felnőttet) "]
["Gyakorlati Vegyes","a legkönnyebb átnevelni, az az egyik vagy a másik oldalra billenteni. A vegyes típusú gyereket"]
["Gyakorlati Vegyes","bátrabban lehet nevelni. Felnőttként a vegyes típus, nagyon könnyen megtalálja a hangot minden"]
["Gyakorlati Vegyes","emberrel. "]
["Gyakorlati Vegyes","A marker számok összege, vagyis a 6.és a 7. csakra együttes értéke 100 alatt van, és mindkét "]
["Gyakorlati Vegyes","érték aránylag alacsony. "]
["Gyakorlati Vegyes"]
["Gyakorlati Vegyes","Praktikus analógia szerint működik. Az energia-megmaradás, a fizikai világ törvényei szerint él: "]
["Gyakorlati Vegyes","nem lehet többet kapni, mint ami van. Az élettől tanul nem a könyvekből. Okos, de a saját"]
["Gyakorlati Vegyes","értelmezése szerint. Mindent akkor csinál, ha látja, hogy rövid idő alatt, pozitív eredményt kap."]
["Gyakorlati Vegyes","Felesleges lépést nem tesz. Nem tud olyan munkát elképzelni, ami a távoli jövőben hoz csak eredményt."]
["Gyakorlati Vegyes","Saját megszokott módszere van a fejlődésre. A földön él, átlagos ember. "]
["Gyakorlati Vegyes","A boldog gyakorlati ember nem akar fejlődni. Gyakorlatias típusú tanuló is, jól meg tudja jegyezni a"]
["Gyakorlati Vegyes","dolgokat, de otthon egyszer át kell ismételni az órai anyagot. Neki még többet kell ismételni, vissza "]
["Gyakorlati Vegyes","kell kérdezni tőle az órán tanultakat. A gyakorlatias, válaszadás előtt, akár fel is lapoz egy tankönyvet,"]
["Gyakorlati Vegyes","hiszen ő szeret megalapozott, biztos lenni a válaszaiban. Lassabban vág az esze, mint egy produktívnak."]
["Gyakorlati Vegyes","Jót tesz neki, ha sablonokat, jegyzeteket ír. "]
["Gyakorlati Vegyes"]
["Gyakorlati Vegyes","- Itt mind a két mutató egyenlő "]
["Gyakorlati Vegyes","- Kiegyensúlyozott "]
["Gyakorlati Vegyes","- Kreatív, gyakorlatias "]
["Gyakorlati Vegyes","- Jelennel foglalkozik "]
["Produktív Művészi"]
["Produktív Művészi","INTELLEKTUÁLIS kontúr: Produktív Művészi"]
["Produktív Művészi","Produktív típusról akkor beszélünk, ha a 6. és a 7. csakra együttes értéke magas, vagyis "]
["Produktív Művészi","100 felett van. "]
["Produktív Művészi"]
["Produktív Művészi","Vállalja, hogy pénz nélkül dolgozzon, mivel először befektet, a pénz ráér később érkezni. Tudja, hogy"]
["Produktív Művészi","először be kell fektetni a tudását, a munkáját, az elképzeléseit, az időt. Majd, ha megvalósul, akkor "]
["Produktív Művészi","utána jöhet a megtérülés. Tud úgy dolgozni, hogy nincs azonnali eredmény, számára az alkotás a "]
["Produktív Művészi","fontos. Egyetlen fontos dolog számára az életben, a tudás. Mindent tudni és érteni akar."]
["Produktív Művészi","A fizikai életben lehet boldogtalan, a szellemi életben boldog. "]
["Produktív Művészi","Minden összefüggést átlát, megért, ezáltal, mindent meg tud tervezni. "]
["Produktív Művészi","Tehát nem az azonnali jutalomért fog dolgozni. "]
["Produktív Művészi","Képes a jövőt megálmodni, meglátni, és létre is hozza azt a jövőt, amit lát. "]
["Produktív Művészi","Nem saját hasznára dolgozik, hanem mindenki legjavára. "]
["Produktív Művészi","Úttörő az ilyen ember, akit sokszor csak a halála után ismernek el."]
["Produktív Művészi","Az ilyen okos típusú nagyon könnyen tanul, nagyon jól vág az esze. Az ilyen produktív"]
["Produktív Művészi","gyereknek az iskolában elég figyelni az órán, otthon már nem kell erőltetni a tanulást. Abból megél, "]
["Produktív Művészi","amit az órán hall. Munkaterülete, ahol gyors döntéseket kell hozni, vagy ahol vita, érvelés merülhet fel."]
["Produktív Művészi","Hiszen nagyon gyorsan vág az esze. "]
["Produktív Művészi"]
["Produktív Művészi","Látjuk, hogy az összértékek 100 fölött vannak. De náluk mivel művésziek, az intuíció a 6. csakra"]
["Produktív Művészi","értéke magasabb, mint a 7. csakráé a logikáé. "]
["Produktív Művészi"]
["Produktív Művészi","Élénk képi világgal és a megvalósításhoz szükséges fejlett rendszerező képességekkel is rendelkezik,"]
["Produktív Művészi","de nem tipikusan végrehajtó alkat. Hiányzik belőle a szikra, hogy végig csinálja a dolgokat. "]
["Produktív Művészi","Inkább csak kitalálni szereti, megkomponálni az egészet. Már látja, hogy mi lesz a jövő, de nem"]
["Produktív Művészi","menne érte, hogy azt a jelenbe hozza, hanem már egy újabb jövőben lévő projekten képes"]
["Produktív Művészi","dolgozni. A jövőben él. Előre viszi a fejlődést az ötleteivel, az elképzeléseivel. De nem ő a "]
["Produktív Művészi","végrehajtó. Nagyon jól értelmezi a szimbólum rendszereket. Mivel művészi, másképp rögzíti"]
["Produktív Művészi","az információt. Nagyon ráérez dolgokra és ráadásul nagyon gyorsan."]
["Produktív Gondolkodó"]
["Produktív Gondolkodó","INTELLEKTUÁLIS kontúr: Produktív Gondolkodó"]
["Produktív Gondolkodó","Produktív típusról akkor beszélünk, ha a 6. és a 7. csakra együttes értéke magas, vagyis "]
["Produktív Gondolkodó","100 felett van. "]
["Produktív Gondolkodó"]
["Produktív Gondolkodó","Vállalja, hogy pénz nélkül dolgozzon, mivel először befektet, a pénz ráér később érkezni. Tudja, hogy"]
["Produktív Gondolkodó","először be kell fektetni a tudását, a munkáját, az elképzeléseit, az időt. Majd, ha megvalósul, akkor "]
["Produktív Gondolkodó","utána jöhet a megtérülés. Tud úgy dolgozni, hogy nincs azonnali eredmény, számára az alkotás a "]
["Produktív Gondolkodó","fontos. Egyetlen fontos dolog számára az életben, a tudás. Mindent tudni és érteni akar."]
["Produktív Gondolkodó","A fizikai életben lehet boldogtalan, a szellemi életben boldog. "]
["Produktív Gondolkodó","Minden összefüggést átlát, megért, ezáltal, mindent meg tud tervezni. "]
["Produktív Gondolkodó","Tehát nem az azonnali jutalomért fog dolgozni. "]
["Produktív Gondolkodó","Képes a jövőt megálmodni, meglátni, és létre is hozza azt a jövőt, amit lát. "]
["Produktív Gondolkodó","Nem saját hasznára dolgozik, hanem mindenki legjavára. "]
["Produktív Gondolkodó","Úttörő az ilyen ember, akit sokszor csak a halála után ismernek el."]
["Produktív Gondolkodó","Az ilyen okos típusú nagyon könnyen tanul, nagyon jól vág az esze. Az ilyen produktív"]
["Produktív Gondolkodó","gyereknek az iskolában elég figyelni az órán, otthon már nem kell erőltetni a tanulást. Abból megél, "]
["Produktív Gondolkodó","amit az órán hall. Munkaterülete, ahol gyors döntéseket kell hozni, vagy ahol vita, érvelés merülhet fel."]
["Produktív Gondolkodó","Hiszen nagyon gyorsan vág az esze. "]
["Produktív Gondolkodó"]
["Produktív Gondolkodó"]
["Produktív Gondolkodó","Ennek a típusnak az a jellemzője, hogy mivel produktív, 100-nál magasabb az összérték, viszont itt a "]
["Produktív Gondolkodó","7. csakra ami a logikus gondolkodásnak a területe magasabb. "]
["Produktív Gondolkodó"]
["Produktív Gondolkodó","Itt absztrakt szinten működik a gondolkodás. Ugyan a logikára és érvekre támaszkodik, de elvont, a"]
["Produktív Gondolkodó","valóság összefüggéseivel nem törődő, a szokásos formákat megbontó ember. Fürge észjárású, "]
["Produktív Gondolkodó","filozofikus alkat, szó szerint penge agya van, mindent jól lát, mindent jól tud. "]
["Produktív Gondolkodó","Abszolút filozofikus alkat, 6000 oldal jegyzet van az agyában, amit el is tud mondani. "]
["Produktív Gondolkodó","Jön neki az intuíció, persze ritkábban, mint a produktív vegyeseknek. Viszont a Koronacsakra magas"]
["Produktív Gondolkodó","értékének a segítségével, ezeket a intuíciós megérzéseket gyönyörűen tudja verbálisan működtetni. "]
["Produktív Gondolkodó","Hihetetlenül jól tudja lehozni a Koronacsakra segítségével az információkat tehát a legeslegjobban a"]
["Produktív Gondolkodó","produktív - gondolkodók tudnak kapcsolódni a felsőbb Énhez. "]
["Produktív Gondolkodó"]
["Produktív Gondolkodó","Kiemelhető a 29-82 és a 29-88-as értékkel rendelkezők. Ők nagyon különleges emberek különös"]
["Produktív Gondolkodó","képességük, illetve küldetésük, hogy az Univerzumból lehozzák az információkat. Hiszen nagyon"]
["Produktív Gondolkodó","magas energiával működik a Koronacsakrájuk. Ugyan a Harmadik szem csakrának alacsony az értéke,"]
["Produktív Gondolkodó","de azokat, amiket ezzel a kevés intuíciós energiával éreznek azt tudják használni. Illetve, ha elindulnak "]
["Produktív Gondolkodó","a spirituális úton, tudatában vannak annak, hogy fentről hozzák az üzeneteket. Ez az intuíciós energia"]
["Produktív Gondolkodó","hozzáadódik a logikus energiához, és a kettőt összefésülve, egyszerűen tudják, hogy az nem egy kósza "]
["Produktív Gondolkodó","megérzés. Nyilván itt is vannak olyan emberek, akik ilyen típusba tartoznak, de mégsem tudják ezt"]
["Produktív Gondolkodó","magukról, viszont ugyanúgy hoznak le információkat, csak nem tudják hova tenni. Mivel a 7. csakra "]
["Produktív Gondolkodó","értéke magasabb, ezért szükségük van a logikus meggyőződésre. A produktív vegyes, nem akar"]
["Produktív Gondolkodó","meggyőzni senkit, nem akar bizonygatni, mert neki egyértelmű, hogy mindenkinek értenie kellene,"]
["Produktív Gondolkodó","amiről beszél, viszont a produktív gondolkodók be akarják bizonyítani, illetve be is bizonyítják, "]
["Produktív Gondolkodó","hogy igazuk van. Egyszerűen tudnak dolgokat és azokat logikával, érvekkel meg is tudják "]
["Produktív Gondolkodó","magyarázni, igy lesznek hitelesek. Nekik van türelmük ezt kikommunikálni. Inkább a múltban élnek, "]
["Produktív Gondolkodó","nem csaponganak a múlt- jelen és jövő között. Produktív, tehát látja a jövőt, úgymond a jövőképet,"]
["Produktív Gondolkodó","de mégis mindent a múltból eredeztet. A múlt mindig, egy viszonyítási pont számára. Amikor beszél,"]
["Produktív Gondolkodó","vagy filozofál, azt látod a szemén, hogy mintha valahonnan ezt előszedné, a fejéből vagy valahol"]
["Produktív Gondolkodó","keresgélne a gondolataiban, múltjában megtanult, megtapasztalt dolgok között."]
["Produktív Gondolkodó"]
["Produktív Gondolkodó","Tehát, a produktív gondolkodóknál, kifejezetten az információ közvetítés a fontos. Rengeteget "]
["Produktív Gondolkodó","olvas, és tanul és szűri ki az információkat mindenhonnan. Ez nagyon jó, mert nagyon nagy"]
["Produktív Gondolkodó","tudásra tesz szert, viszont nem mindig tudja kibontakoztatni ezt az óriási nagy tudását. De a"]
["Produktív Gondolkodó","vágya az, hogy mindent tudni akar. Azt gondolja, hogy ezt más is tudni akarja, és ezért elmondja"]
["Produktív Gondolkodó","neki, ha akarja, ha nem. Szeretné a tudását a világgal megosztani. "]
["Produktív Vegyes"]
["Produktív Vegyes","INTELLEKTUÁLIS kontúr: Produktív Vegyes"]
["Produktív Vegyes","Produktív típusról akkor beszélünk, ha a 6. és a 7. csakra együttes értéke magas, vagyis "]
["Produktív Vegyes","100 felett van. "]
["Produktív Vegyes"]
["Produktív Vegyes","Vállalja, hogy pénz nélkül dolgozzon, mivel először befektet, a pénz ráér később érkezni. Tudja, hogy"]
["Produktív Vegyes","először be kell fektetni a tudását, a munkáját, az elképzeléseit, az időt. Majd, ha megvalósul, akkor "]
["Produktív Vegyes","utána jöhet a megtérülés. Tud úgy dolgozni, hogy nincs azonnali eredmény, számára az alkotás a "]
["Produktív Vegyes","fontos. Egyetlen fontos dolog számára az életben, a tudás. Mindent tudni és érteni akar."]
["Produktív Vegyes","A fizikai életben lehet boldogtalan, a szellemi életben boldog. "]
["Produktív Vegyes","Minden összefüggést átlát, megért, ezáltal, mindent meg tud tervezni. "]
["Produktív Vegyes","Tehát nem az azonnali jutalomért fog dolgozni. "]
["Produktív Vegyes","Képes a jövőt megálmodni, meglátni, és létre is hozza azt a jövőt, amit lát. "]
["Produktív Vegyes","Nem saját hasznára dolgozik, hanem mindenki legjavára. "]
["Produktív Vegyes","Úttörő az ilyen ember, akit sokszor csak a halála után ismernek el."]
["Produktív Vegyes","Az ilyen okos típusú nagyon könnyen tanul, nagyon jól vág az esze. Az ilyen produktív"]
["Produktív Vegyes","gyereknek az iskolában elég figyelni az órán, otthon már nem kell erőltetni a tanulást. Abból megél, "]
["Produktív Vegyes","amit az órán hall. Munkaterülete, ahol gyors döntéseket kell hozni, vagy ahol vita, érvelés merülhet fel."]
["Produktív Vegyes","Hiszen nagyon gyorsan vág az esze. "]
["Produktív Vegyes"]
["Produktív Vegyes","Nekik nagyon magas a 6. csakra és nagyon magas a 7. csakra töltésük is. "]
["Produktív Vegyes"]
["Produktív Vegyes","Bármely intellektuális téren könnyen tájékozódó, termékeny képzeletű, fejlett kritikai érzékű ember. "]
["Produktív Vegyes","Nem csak elképzelni, de gondolatait formába önteni is képes, tehát megvalósítja azokat a "]
["Produktív Vegyes","kreatív ötleteket, amik megszületnek a fejében. Fejlett az emlékező képessége, jól tájékozódik "]
["Produktív Vegyes","és rendkívül kreatív. Hiszen hihetetlenül intuitív és rá tud pörögni az agya is ezekre a flashekre. "]
["Produktív Vegyes","Nem hisz el bármit, hajlamos arra, hogy ellenőrizze, átgondolja, mielőtt elfogadja bárki nézetét, "]
["Produktív Vegyes","de aztán gyorsan helyre tudja tenni a dolgokat. Aztán vagy elfogadja, vagy tagadja. "]
["Produktív Vegyes","Tudja a dolgokat, de nem akarja bizonygatni ezt másnak. Azt gondolja, hogy mindenkinek olyan "]
["Produktív Vegyes","egyszerű megérteni azt, amit ő pikk-pakk lejátszik a fejében. Neki az a természetes, hogy"]
["Produktív Vegyes","mindent átlát, mindent átpörget és már meg is értette, és azt hiszi, hogy másoknak is ilyen"]
["Produktív Vegyes","egyszerű az egész. "]
["Produktív Vegyes","Ez ugyanolyan, mint a kolerikusnál, hogy nekik az a természetes, hogy állandóan"]
["Produktív Vegyes","pörögnek, és mindenből kihozzák a maximumot, és azt hiszik, hogy mindenki így működik. A "]
["Produktív Vegyes","produktív - vegyes pontosan ugyanilyen, csak ő agyban hozza ki a maximumot. És mindenkitől azt"]
["Produktív Vegyes","várja, hogy kihozza magából ezt a maximumot, illetve azt gondolja, hogy az ő gondolkodási tempója, "]
["Produktív Vegyes","az ő tanulási tempója, az ő termelékeny kreatív tempója, az ő megoldási képessége az átlagos. "]
["Produktív Vegyes","Ő mindent ért, mindent tud, mindent átlát, és egyből rendszerbe rakja. "]
["Produktív Vegyes","De ez egy lassabb tempójú energiával rendelkező embernél, vagy egy gyakorlati gondolkodónál,"]
["Produktív Vegyes","nem úgy működik. Nem akarja vesztegetni az időt magyarázkodással, meg nincs hozzá türelme, "]
["Produktív Vegyes","kedvenc mondása hogy \"az emberek olyan sötétek\".... \"egész nap csak hülyékkel beszélgetek\"."]
["Produktív Vegyes"]
["Produktív Vegyes","Persze olyanok is vannak, akik ezekkel a rengeteg sok jó flash-sel, amik állandóan jönnek, mint  "]
["Produktív Vegyes","intuíciók, nem tudnak mit kezdeni, mert nekik ez a természetes, a megszokott. Más viszont, akinek"]
["Produktív Vegyes","kevesebb flash érkezik, kisebb töltése van a harmadik szemének, jön egy jó ötlet, rákapcsol és azt "]
["Produktív Vegyes","hiszi, hogy milyen spirituális. Noha nem. Csak azt az egyet könnyebb neki elkapni, mint "]
["Produktív Vegyes","valakinek, akinek csőstül jönnek a jobbnál jobb ötletek, és mindegyikre rápörög az agya. De a"]
["Produktív Vegyes","produktív vegyesek, nagyon gyakran attól szenvednek, hogy nem tudják átadni azt az érzést, azt a"]
["Produktív Vegyes","pörgést, ami az ő agyukban, meg az ő mozijukban, az ő fejükben zajlik le. "]
["Produktív Vegyes"]
["Produktív Vegyes","Tehát ez a típus a zseni határát súrolja. "]
["Produktív Vegyes"]
["Produktív Vegyes","Neki mindig alkotni kell, tervezni kell, valamint, hogy a szellemi ereje terhelve legyen."]
["Produktív Vegyes","Szenved a semmittevéstől, ha nem lehet mindig valamit kitalálni."]
["Produktív Vegyes","Hihetetlen kreatív mindig mindenből kitalál valamit, mindig alkotnia kell. "]
["Produktív Vegyes","Fontos, hogy le tudja lekötni szellemi kapacitását, mert betegségeket is létre tud hozni magának."]
["Produktív Vegyes","Múltban, a jelenben, a jövőben egyaránt lavíroznak. "]
["Produktív Vegyes","Nehéz nekik tolerálni, hogy mások nem így gondolkodnak. Nagyon alkalmasak az ilyen"]
["Produktív Vegyes","emberek, olyan szakmákra, vagy olyan területekre, ahol gyorsan kell döntéseket hozni, gyorsan át kell "]
["Produktív Vegyes","látni a helyzetet hogy mi a teendő, például mentőorvosnak vagy autóversenyzőnek. "]
["Produktív Vegyes","Ezért pályaválasztásnál vagy munkaterületnek, hivatásnak, olyat kell választani, ahol lekötik ezt a"]
["Produktív Vegyes","hatalmas agyi kapacitásukat, mert abban fognak tudni a legjobban teljesíteni. "]
["Harmónikus Vegyes"]
["Harmónikus Vegyes","INTELLEKTUÁLIS kontúr: Harmónikus Vegyes"]
["Harmónikus Vegyes","Határokat hoz létre, és azon belül próbálja rendbe hozni, megoldani, illetve létrehozni a"]
["Harmónikus Vegyes","dolgokat. A legnagyobb probléma akkor van, ha ezeket a határokat elveszíti. Amikor kicsúsznak a "]
["Harmónikus Vegyes","dolgok a kezei közül, akkor elveszik, mintha a talajt húznák ki a lába alól. Ha a régi rendszer "]
["Harmónikus Vegyes","sérül, fizikai fájdalmat érez. A rendszeren belül törekszik a reformokra, a változásra, javításra. De"]
["Harmónikus Vegyes","nagy változásokat, nagy változtatásokat nem képes átlépni. Ez kissé konzervatívvá teszi őt. Át "]
["Harmónikus Vegyes","akarja menekíteni azokat a dolgokat, amik régen jól működtek, de nem veszi figyelembe, "]
["Harmónikus Vegyes","hogy azóta már változott a világ, és lehet, hogy kéne változtatni. Hiányzik belőle a rugalmasság."]
["Harmónikus Vegyes","A jelenben és a múltban él. A jövőtől távolságot tart, mert mindent a múlthoz és a mosthoz akar belőni."]
["Harmónikus Vegyes","Nagyjából azonos szinten van az intuíció és a logika. "]
["Harmónikus Vegyes"]
["Harmónikus Vegyes","Kiegyensúlyozott, kreatív gondolkodású. Az agyféltekék szinkronban vannak egymással. Bármely"]
["Harmónikus Vegyes","temperamentumot kompenzál. Hasonló, mint a fizikai kontúrnál a közepesen szangvinikus, aki "]
["Harmónikus Vegyes","mindenkivel megtalálja a hangot, vagy az érzelmi kontúrnál az empatikus, aki mindenkire rá tud"]
["Harmónikus Vegyes","hangolódni. "]
["Gondolkodó Harmónikus"]
["Gondolkodó Harmónikus","INTELLEKTUÁLIS kontúr: Gondolkodó Harmónikus"]
["Gondolkodó Harmónikus","Határokat hoz létre, és azon belül próbálja rendbe hozni, megoldani, illetve létrehozni a"]
["Gondolkodó Harmónikus","dolgokat. A legnagyobb probléma akkor van, ha ezeket a határokat elveszíti. Amikor kicsúsznak a "]
["Gondolkodó Harmónikus","dolgok a kezei közül, akkor elveszik, mintha a talajt húznák ki a lába alól. Ha a régi rendszer "]
["Gondolkodó Harmónikus","sérül, fizikai fájdalmat érez. A rendszeren belül törekszik a reformokra, a változásra, javításra. De"]
["Gondolkodó Harmónikus","nagy változásokat, nagy változtatásokat nem képes átlépni. Ez kissé konzervatívvá teszi őt. Át "]
["Gondolkodó Harmónikus","akarja menekíteni azokat a dolgokat, amik régen jól működtek, de nem veszi figyelembe, "]
["Gondolkodó Harmónikus","hogy azóta már változott a világ, és lehet, hogy kéne változtatni. Hiányzik belőle a rugalmasság."]
["Gondolkodó Harmónikus","A jelenben és a múltban él. A jövőtől távolságot tart, mert mindent a múlthoz és a mosthoz akar belőni."]
["Gondolkodó Harmónikus","Nagyjából azonos szinten van az intuíció és a logika. "]
["Gondolkodó Harmónikus","Itt az a jellemző, hogy nagyon alacsony a 6. csakrának az intuíciónak az értéke, és hozzá "]
["Gondolkodó Harmónikus","képest, aránytalanul magas a 7. csakrának a logikának az értéke, de 100 alatt van az összérték "]
["Gondolkodó Harmónikus"]
["Gondolkodó Harmónikus","Állandó agyalás jellemzi, a mindig mindent, mindennel össze akar hozni, mindent meg akar érteni."]
["Gondolkodó Harmónikus","Tulajdonképpen összehangolja a jobb és a bal agyféltekét, mert annyira kevés a logikához"]
["Gondolkodó Harmónikus","képest az intuíció, hogy azt arra használja, a logikát egy picit finomítja. Nem az a szélsőséges"]
["Gondolkodó Harmónikus","racionális gondolkodó, hanem harmonikussá tudják tenni a gondolataikat."]
["Gondolkodó Harmónikus","Két oldalról nézi a világot. Nagyon fejlett a logikai és az elemző képessége, viszont alacsony a "]
["Gondolkodó Harmónikus","vizualizációs képessége, alacsony képi gondolkodás jellemzi. "]
["Gondolkodó Harmónikus"]
["Gondolkodó Harmónikus","Bármelyik gondolkodó típusnak nagyon nehezére esik meditálni és mindig le kell kötni a az agyát"]
["Gondolkodó Harmónikus","valamilyen mentális tevékenységgel, mert máskülönben folyamatos agyalásban van. Még éjszaka is  "]
["Gondolkodó Harmónikus","vagy este mikor lefekszik. Ezért jó neki, ha egy picit a jobb agyféltekét stimulálja, kicsit edzi."]
["Gondolkodó Harmónikus","Gondolkodó nagyon szeret tanulni, és meg is akar érteni mindig mindent. Intellektuális síkon azt kell "]
["Gondolkodó Harmónikus","még tudni, hogy a hasonlók a hasonlókkal értenek szót. A harmonikusak mindenkivel megtálaljak a "]
["Gondolkodó Harmónikus","hangot."]
["Produktív Gondolkodó"]
["Produktív Gondolkodó","Bármelyik gondolkodó típusnak nagyon nehezére esik meditálni és mindig le kell kötni a az agyát"]
["Produktív Gondolkodó","valamilyen mentális tevékenységgel, mert máskülönben folyamatos agyalásban van. Még éjszaka is  "]
["Produktív Gondolkodó","vagy este mikor lefekszik. Ezért jó neki, ha egy picit a jobb agyféltekét stimulálja, kicsit edzi."]
["Produktív Gondolkodó","Gondolkodó nagyon szeret tanulni, és meg is akar érteni mindig mindent. Intellektuális síkon azt kell "]
["Produktív Gondolkodó","még tudni, hogy a hasonlók a hasonlókkal értenek szót. A harmonikusak mindenkivel megtálaljak a "]
["Produktív Gondolkodó","hangot."]
["Gyakorlati Gondolkodó"]
["Gyakorlati Gondolkodó","Bármelyik gondolkodó típusnak nagyon nehezére esik meditálni és mindig le kell kötni a az agyát"]
["Gyakorlati Gondolkodó","valamilyen mentális tevékenységgel, mert máskülönben folyamatos agyalásban van. Még éjszaka is  "]
["Gyakorlati Gondolkodó","vagy este mikor lefekszik. Ezért jó neki, ha egy picit a jobb agyféltekét stimulálja, kicsit edzi."]
["Gyakorlati Gondolkodó","Gondolkodó nagyon szeret tanulni, és meg is akar érteni mindig mindent. Intellektuális síkon azt kell "]
["Gyakorlati Gondolkodó","még tudni, hogy a hasonlók a hasonlókkal értenek szót. A harmonikusak mindenkivel megtálaljak a "]
["Gyakorlati Gondolkodó","hangot."]
["Ertelmezes"]
["Ertelmezes","Értelmezzük az adatokat"]
["Ertelmezes","Általános értelmezés"]
["Ertelmezes","Fizikai szint: - nemi aktivitás, vágyak, reagálás, inger felvétel - materiális szinttel, anyaggal kapcsolatos "]
["Ertelmezes","dolgok - anyagi javak - tevékenységgel, cselekedetekkel kapcsolatos dolgok - munkavégzés, "]
["Ertelmezes","bekapcsolódása sebesség a cselekvésbe - ébredés/ elalvás - ki milyen gyorsan tud alkalmazkodni "]
["Ertelmezes","dolgokhoz, helyzetekhez "]
["Ertelmezes","Érzelmi szint: - a motiváció - túlélő képesség, érzelmi megnyilvánulás - lelkesedés - érzelmek és "]
["Ertelmezes","realitás összefüggés "]
["Ertelmezes","Intellektuális szint: - cselekvés alapjául szolgáló - gondolatban megfogalmazott dolgok - a célok - "]
["Ertelmezes","a munka a tanulás "]
["Ertelmezes","Minél nagyobb egy csakra értéke annál határozottabban jellemző a csakra által képviselt "]
["Ertelmezes","tulajdonság az egyénre. "]
["Ertelmezes Fizikai"]
["Ertelmezes Fizikai","FIZIKAI KONTÚR: "]
["Ertelmezes Fizikai","Itt a Szakrális (2) csakrát és a Napfonat (3) csakrát vizsgáljuk."]
["Ertelmezes Szakralis"]
["Ertelmezes Szakralis","Fékezés (2 Szakrális v. Szexcsakra): A differenciálás képessége, az egyén reagálása a világ felé "]
["Ertelmezes Szakralis","(ki be kapcsolódás) "]
["Ertelmezes Szakralis","Lásd az első oldalon a 2.-es Szakrális csakra értékét."]
["Ertelmezes Szakralis 0-30"]
["Ertelmezes Szakralis 0-30","(0-30) A fékezés értéke alacsony, nehezen ismer fel embereket, tárgyakat. Azért, mert gyorsan és "]
["Ertelmezes Szakralis 0-30","felületesen reagálnak dolgokra. Valamelyest a saját világában él. A világot nem olyannak látja, mint, "]
["Ertelmezes Szakralis 0-30","amilyen a valóságban, saját sürgölődése lázában ég, a saját cselekvésére figyel. Mindent hamar"]
["Ertelmezes Szakralis 0-30","akarnak megvalósítani. A lényeg és a részletek számunkra elvesznek. Nem nagyon tudnak kifelé "]
["Ertelmezes Szakralis 0-30","figyelni, inkább belül élnek. Viszont nagyon gyorsak, gyorsan hoznak döntéseket. A mozgásuk is "]
["Ertelmezes Szakralis 0-30","viszonylag gyorsan. Ők kicsit éber alvóak is. Kevesebb az alvásigényük is. Alvásból is, szinte egy "]
["Ertelmezes Szakralis 0-30","szempillantás alatt felébrednek. Nagyon gyorsan tudnak bekapcsolni. "]
["Ertelmezes Szakralis 31-45"]
["Ertelmezes Szakralis 31-45","(31-45) A fékezés értéke közepes: Közepes mértékű alvás- és mozgásigény. Közepes rugalmasság. "]
["Ertelmezes Szakralis 46-99"]
["Ertelmezes Szakralis 46-99","(46-99) A fékezés értéke magas: Az egyén lassan hagy abba dolgokat, ragaszkodik a megszokáshoz, "]
["Ertelmezes Szakralis 46-99","a tradíciók követéséhez, a bejáratott sémákhoz. A szokások rabjává tud válni. Lassan vált, kissé "]
["Ertelmezes Szakralis 46-99","rugalmatlan, csökönyös. Nehéz kibillenteni dolgokból. Időre van szüksége az új dolgok/élmények "]
["Ertelmezes Szakralis 46-99","feldolgozásához. Hosszú idő kell neki, még egyik dologból a másikba kapcsolódik. Az ilyen típusú "]
["Ertelmezes Szakralis 46-99","ember sokáig készülődik reggel, nehezebben kel ki az ágyból. Általában mindenre több idő kell neki, "]
["Ertelmezes Szakralis 46-99","lassabban kapcsol be. Például gyerekeknél ezt is figyelembe kell venni, hogy reggel hamarabb kell "]
["Ertelmezes Szakralis 46-99","ébreszteni őket, hogy magukhoz térjenek, hogy el tudjanak indulni az iskolába, óvodába. Nem szereti a "]
["Ertelmezes Szakralis 46-99","váratlan helyzeteket. A lassú állandóságának a rabja az ilyen ember. "]
["Ertelmezes Szakralis 46-99","A kényszerhelyzetek és a sürgetés stresszeli! "]
["Ertelmezes Szakralis 46-99","Ezzel ki lehet őket billenteni. Minél jobban sürgeted, annál jobban befeszül, és behisztizik, mert nem "]
["Ertelmezes Szakralis 46-99","tud sietni, őt nem lehet sürgetni. Nem szeret alkalmazkodni! Mármint olyan téren, hogy egy gyorsabb "]
["Ertelmezes Szakralis 46-99","tempójú emberhez, nem szeret alkalmazkodni, mert attól kibillen. Ragaszkodik a meggyőződéseihez. "]
["Ertelmezes Koldok"]
["Ertelmezes Koldok","Élénkítés-aktivitás (3 Köldök v. Gyomorcsakra): Az aktivitás mértékét mutatja. A bekapcsolódás "]
["Ertelmezes Koldok","képességet, ahogy az egyén, a világ változásait feldolgozza, ahogy lereagálja. Mennyire van ritmusa, "]
["Ertelmezes Koldok","dinamikája annak, amit csinálok. Mennyire vagyok gyors, mennyire vagyok lassú. Az ún. "]
["Ertelmezes Koldok","bekapcsolódás ereje, amely kifejezi az élénkség mértékét, az információk feldolgozásában. "]
["Ertelmezes Koldok","Mennyire terhelhető az illető, mit bír el, mekkora a türelme, mekkora a kitartása."]
["Ertelmezes Koldok","Lásd az első oldalon a 3.-es Köldökcsakra értékét."]
["Ertelmezes Koldok 0-30"]
["Ertelmezes Koldok 0-30","(0-30) aktivitás értéke alacsony: Főként az érzékelések dominálnak. Fizikai érzékenység jellemzői: "]
["Ertelmezes Koldok 0-30","olyan kis mimóza. De mivel ez a Gyomorcsakra, ezért az sem mindegy, hogy miket eszik meg. "]
["Ertelmezes Koldok 0-30","Alacsony töltése van a gyomrának, alacsony a kapacitása is kevesebbet eszik, de amit megeszik, az "]
["Ertelmezes Koldok 0-30","minőségi legyen. Megválogatja az ételt. Egy ilyen típusú gyermek, nagyon válogatós lehet. Nehezen "]
["Ertelmezes Koldok 0-30","eszik, csak falatkákat teszik, sokáig eszik. A másik, ami nagyon fontos hogy nem megetethető, mert "]
["Ertelmezes Koldok 0-30","ugye nem csak a szánkkal eszünk, hanem ideológiákat is megeszünk. És az agyunk számára a vélt, a "]
["Ertelmezes Koldok 0-30","valós, és a szimbolikus \"étel\", az étel, és így fog rá reagálni. Az ilyen embernek, fontosak a részletek, "]
["Ertelmezes Koldok 0-30","belső világára figyel. "]
["Ertelmezes Koldok 31-45"]
["Ertelmezes Koldok 31-45","(31-45) aktivitás értéke közepes: Közepes mozgásigény, közepes terhelés. "]
["Ertelmezes Koldok 46-99"]
["Ertelmezes Koldok 46-99","(46-99) aktivitás értéke magas: Fürge, mozgékony, aktív, csinálja, lelkes mozog, lehet, hogy túlmozgása"]
["Ertelmezes Koldok 46-99","is van. Nagy gesztikulációkkal magyaráz, nagy a kitartása van, de ugyanakkor rámenős is tud lenni, "]
["Ertelmezes Koldok 46-99","akár gátlástalanul tolni, amit elkezd csinálni. Enni is tud, szeret is enni. Bármit meg tud enni, nagyokat "]
["Ertelmezes Koldok 46-99","tud nevetni, minden, ami a fizikai szinten az élvezeteket jelenti, azt imádja, ez a Bika féle élet igenlő érzés "]
["Ertelmezes Koldok 46-99","van benne és szinte bármit megetethetnek vele. Bármit \"megtehetnek\" vele, a szó átvitt értelmében. "]
["Ertelmezes Koldok 46-99","Nem stresszeli, ha több feladatot kell egyszerre végeznie. "]
["Ertelmezes Fizikai osszehasonlitas"]
["Ertelmezes Fizikai osszehasonlitas","A 2. és 3. csakra együttes értéke (fékezés-aktivitás) "]
["Ertelmezes Fizikai osszehasonlitas","A két érték összege, az általános ingerküszöb nagyságát, az idegrendszer fizikai erejét, és "]
["Ertelmezes Fizikai osszehasonlitas","ingertűrő képességét mutatja. "]
["Ertelmezes Fizikai osszehasonlitas 0-70","Ha ez az összérték alacsony (0-70 közötti) Főként az érzékelések dominálnak, érzékeny az ingerekre, "]
["Ertelmezes Fizikai osszehasonlitas 0-70","belső világára figyel. Befelé forduló introvertált személyiség. "]
["Ertelmezes Fizikai osszehasonlitas 71-100","Ha ez az összérték közepes (71-100 közötti) A ráhatások, közepesen számítanak. "]
["Ertelmezes Fizikai osszehasonlitas 101-200","Ha ez az összérték magas (101-200 közötti) A ráhatások felé mozdul el. energikus, racionális, "]
["Ertelmezes Fizikai osszehasonlitas 101-200","hatékony, gyakorlatias, felületes, céltudatos."]
["Ertelmezes Fizikai osszehasonlitas vege"]
["Ertelmezes Fizikai osszehasonlitas vege","A 2. és 3. csakra egymáshoz viszonyított értékei: "]
["Ertelmezes Fizikai osszehasonlitas vege","Kiegyensúlyozott számpár: az egyik szám nem nagyobb, mint a másik kétszerese. "]
["Ertelmezes Fizikai osszehasonlitas vege","Kiegyensúlyozatlan számpár: Ha az egyik szám értéke legalább kétszerese a másiknak. "]
["Ertelmezes Fizikai osszehasonlitas vege","Ilyenkor a nagyobb értékű csakra tulajdonságai elnyomják a másik tulajdonságait. Az a csakra fog "]
["Ertelmezes Fizikai osszehasonlitas vege","intenzívebben dominálni. "]
["Ertelmezes Erzelmi"]
["Ertelmezes Erzelmi","ÉRZELMI KONTÚR: "]
["Ertelmezes Erzelmi","Itt a Szívcsakrát és a Torokcsakrát vizsgáljuk."]
["Ertelmezes Sziv"]
["Ertelmezes Sziv","Érzelmek (4. Szívcsakra) ÉN - EGO Az önzés mértéke. "]
["Ertelmezes Sziv","Önérvényesítés, \"Én\" mennyire tudom magamat képviselni. Mennyire tudom kifejezésre juttatni a saját "]
["Ertelmezes Sziv","vágyaimat, saját elképzeléseimet, a saját értékeimet. Éntudat, Öntudat. "]
["Ertelmezes Sziv","Lásd az első oldalon a 4.-es Szívcsakra értékét."]
["Ertelmezes Sziv 0-30"]
["Ertelmezes Sziv 0-30","(0-30) az érzelmi aktivitás értéke alacsony Főként mások érzelmeit tiszteli, figyel másokra, alacsony "]
["Ertelmezes Sziv 0-30","önértékelés jellemzi, nem fontos saját magának, a másik fontosabb, mint önmaga. Önfeláldozó, csak a "]
["Ertelmezes Sziv 0-30","másik számít. Könnyen elenged, könnyen enged másoknak. "]
["Ertelmezes Sziv 31-45"]
["Ertelmezes Sziv 31-45","(31-45) az érzelmi aktivitás értéke közepes: közepesen érzékeny saját szükségleteire, közepesen fontos"]
["Ertelmezes Sziv 31-45","magának. Kicsit fontos a saját személyisége, de még ő sem ad nagyon hangot ennek, viszont azért, már "]
["Ertelmezes Sziv 31-45","egy picit tisztában van, a saját képességeivel. "]
["Ertelmezes Sziv 46-99"]
["Ertelmezes Sziv 46-99","(46-99) az érzelmi aktivitásértéke magas: Ott már van Éntudat, ott már van Ego. Van személyes "]
["Ertelmezes Sziv 46-99","ráhatása, van öntudata. Ő már kihajtja, hogy teljesüljön a vágya. Rámenős, vezető szerepet tölt be. "]
["Ertelmezes Sziv 46-99","Minél magasabb ez az érték, annál jobban lehet önző, másokat maga mögé utasító, rámenős. Itt már "]
["Ertelmezes Sziv 46-99","fontos, hogy ő kicsoda. Magas az önértékelése, a veszteség lelki teher számára. Lételeme, hogy "]
["Ertelmezes Sziv 46-99","érvényesíteni tudja saját magát. Olyan szerepkörben, olyan közegben tudja magát jól érezni, ahol ez a "]
["Ertelmezes Sziv 46-99","vágya tud teljesülni. "]
["Ertelmezes Torok"]
["Ertelmezes Torok","Érzések (5. Torokcsakra): "]
["Ertelmezes Torok","\"MI\" A\"MI \" mértéke, az érzésekből eredő türelem, és érzékenység. Megmutatja, hogy az ember "]
["Ertelmezes Torok","mennyire képes a másikat elfogadni, mások problémáiba beleérezni, gondjaikat magáévá tenni. "]
["Ertelmezes Torok","Mennyire empatikus és mennyire együttérző. "]
["Ertelmezes Torok","Lásd az első oldalon a 5.-os Torokcsakra értékét."]
["Ertelmezes Torok 0-30"]
["Ertelmezes Torok 0-30","(0-30) az érzések értéke alacsony: Az egyénnek kevésbé fontos a környezete. Nincs igénye a "]
["Ertelmezes Torok 0-30","környezetére. Nehezen nyilvánítja ki érzelmeit, nehezen ad hangot érzéseinek, vágyainak, igényének, a "]
["Ertelmezes Torok 0-30","kifejezés belül zajlik. \" fa arc\" a külvilág keveset érzékel az érzelmei lefolyásáról. Annyira kicsi az energia"]
["Ertelmezes Torok 0-30","tartaléka, hogy sebezhető lenne, ha többet mutatna magából. Inkább semmit nem mutat. Az ilyen "]
["Ertelmezes Torok 0-30","emberek lesznek majd A hideg típusok. A külvilág keveset érzékel az ő drámájából. Ő a klasszikus "]
["Ertelmezes Torok 0-30","szenvedő alkat. Elszenvedi a dolgokat, de nem verbalizálná ki a vágyait. "]
["Ertelmezes Torok 0-30","Nem szabad ezzel visszaélnünk, ha ilyen emberrel találkozunk. "]
["Ertelmezes Torok 31-45"]
["Ertelmezes Torok 31-45","(31-45) az érzések értékek közepes: közepes mértékben figyel a környezetére, képes már "]
["Ertelmezes Torok 31-45","kinyilvánítani az érzéseit, viszont, csak közepesen nyilvánítja ki az érzéseit."]
["Ertelmezes Torok 46-99"]
["Ertelmezes Torok 46-99","(46-99) az érzések értéke magas: Az érzelmekkel kívül zajlanak. Heves kitörésekkel, indulattal, "]
["Ertelmezes Torok 46-99","szélsőséges megéléssel, kacagás- hangos sírás jellemezheti. Lehet empatikus, lehet szenvedélyes az "]
["Ertelmezes Torok 46-99","ilyen típusú ember. Olyan ember, aki önmagát mások mögé sorolja, akár saját kárára is. "]
["Ertelmezes Torok 46-99","Nem érinti érzékenyen a veszteség, túláradóan odaadó, le tud mondani. "]
["Ertelmezes Torok 46-99","Minél magasabb ez az érték annál önfeláldozóbb. "]
["Ertelmezes Erzelmi osszehasonlitas"]
["Ertelmezes Erzelmi osszehasonlitas","A 4. és 5. csakra együttes értéke (érzelmek-érzések) "]
["Ertelmezes Erzelmi osszehasonlitas","A két érték összegének nagysága: Megmutatja, hogy mekkora az általános érzelmi "]
["Ertelmezes Erzelmi osszehasonlitas","tűrőképesség. Mekkora az érzelmi tartaléka, amivel rendelkezik a személy. Mennyire erős a "]
["Ertelmezes Erzelmi osszehasonlitas","saját érzelmi ráhatása, És mekkora ellenállást képes érzelmileg elviselni, anélkül, hogy "]
["Ertelmezes Erzelmi osszehasonlitas","kibillenne. "]
["Ertelmezes Erzelmi osszehasonlitas 0-70","Alacsony (0-70 közötti) az érzelmi helyzetekben kisebb az ingertűrés, könnyebben megbántódik, "]
["Ertelmezes Erzelmi osszehasonlitas 0-70","kis mimóza. Kicsit nagyobb odafigyelés igényel, mert sem befogadása, sem az önzése sem pedig a "]
["Ertelmezes Erzelmi osszehasonlitas 0-70","kikommunikálása nem túl erőteljes, ezért belül zajlanak az érzelmek, belül éli meg. "]
["Ertelmezes Erzelmi osszehasonlitas 71-100","Közepes (71-100 közötti) közepesen terelhető érzelmileg. Ki tud esetleg állni a saját igényeiért, ki "]
["Ertelmezes Erzelmi osszehasonlitas 71-100","tudja magát fejezni. Lehet, hogy szentimentális módon, ami azt jelenti, hogy úgy fogja lekommunikálni, "]
["Ertelmezes Erzelmi osszehasonlitas 71-100","hogy más azt higgye, hogy az, az ő döntése. De érvényre juttatja saját vágyát, saját akaratát, vagy "]
["Ertelmezes Erzelmi osszehasonlitas 71-100","empatikusként, odaadóbbá tud válni. Többet ad, mint amit elvár. "]
["Ertelmezes Erzelmi osszehasonlitas 101-200","Magas (100-200 közötti) magas az érzelmi tűrőképesség, könnyebben feldolgozza a konfliktusokat. "]
["Ertelmezes Erzelmi osszehasonlitas 101-200","Van érzelmi tartaléka. "]
["Ertelmezes Szellemi"]
["Ertelmezes Szellemi","SZELLEMI vagy INTELLEKTUÁLIS KONTÚR: "]
["Ertelmezes Szellemi","Itt a Harmadik szem csakrát és a Koronacsakrát vizsgáljuk "]
["Ertelmezes Homlok"]
["Ertelmezes Homlok","Intuíció (6. Harmadik szem csakra) "]
["Ertelmezes Homlok","A megérzések mértéke, az analóg, képi feldolgozás képessége és a veleszületett viselkedésforma. "]
["Ertelmezes Homlok","Megmutatja a jobb agyfélteke funkcionális állapotát, az információ egységben való feldolgozásának "]
["Ertelmezes Homlok","képességét. "]
["Ertelmezes Homlok","A jobb és a bal agyfélteke, különböző funkciót lát el. A jobb agyfélteke beidegzi a testnek a bal oldalát,"]
["Ertelmezes Homlok","a bal agyfélteke pedig a testnek a jobb oldalát. Akiknél a jobb agyfélteke dominál, azok kreatívak,"]
["Ertelmezes Homlok","intuitívak, művészi képességekkel rendelkeznek, a dolgokat képesek másképp látni, más rajzolódik"]
["Ertelmezes Homlok","ki az elméjükben. Jobban tudnak képekben gondolkodni. "]
["Ertelmezes Homlok","Lásd az első oldalon a 6.-os homlok vagy 3. szem csakra értékét."]
["Ertelmezes Homlok 0-30"]
["Ertelmezes Homlok 0-30","(0-30) az aktivitás értéke alacsony: Nem a sugallatokra figyel, hanem az eredményekre. "]
["Ertelmezes Homlok 0-30","Inkább gyakorlatias. "]
["Ertelmezes Homlok 31-45"]
["Ertelmezes Homlok 31-45","(31-45) az aktivitás értéke közepes: Közepesen érzékeny a sugallatokra és a megérzésekre. "]
["Ertelmezes Homlok 46-99"]
["Ertelmezes Homlok 46-99","(46-99) az aktivitás értéke magas: Jó az \"egész-szerű\" érzékelés, a kreatív gondolkodás, az információ "]
["Ertelmezes Homlok 46-99","új módon és új kapcsolat rendszerben való felállítása. Nagyon jó a megérző képessége. Az ilyen "]
["Ertelmezes Homlok 46-99","embereknél, jó a test nyelvének az irányítása, a mozdulatok és a fizikai aktivitás minősége, speciális "]
["Ertelmezes Homlok 46-99","emlékező központokkal rendelkeznek, a tárgyak vagy események egész-szerű megjegyzésére."]
["Ertelmezes Korona"]
["Ertelmezes Korona","Logika (7. Koronacsakra)"]
["Ertelmezes Korona","A logikának a mértéke, analizáló, mérlegelő gondolkodás, a feldolgozás képessége és szerzett "]
["Ertelmezes Korona","viselkedésforma. Megmutatja a bal agyfélteke funkcionális állapotát, az információ szó szerinti "]
["Ertelmezes Korona","értelmezésének a darabokban való feldolgozásának a képességét. "]
["Ertelmezes Korona","Lásd az első oldalon a 7.-es Koronacsakra értékét."]
["Ertelmezes Korona 0-30"]
["Ertelmezes Korona 0-30","(0-30) alacsony érték: alacsony logikai mérték, inkább az intuíció gyakorol rá hatást "]
["Ertelmezes Korona 31-45"]
["Ertelmezes Korona 31-45","(31-45) közepes érték: praktikus értelmezése a dolgoknak. De vegyesen tud érvényesíteni logikai és "]
["Ertelmezes Korona 31-45","intuitív módszereket is."]
["Ertelmezes Korona 46-99"]
["Ertelmezes Korona 46-99","(46-99) magas érték: jó az ember logikai, a mennyiségi műveletek végrehajtásának, a kritikai és "]
["Ertelmezes Korona 46-99","analitikai munkának a képessége. Racionális. A részletek az apró darabok a fontosabb számára, hogy "]
["Ertelmezes Korona 46-99","össze tudjon állj az egész kép. Kissé szőrszálhasogató tud lenni. Mert mindent érteni és mindent tudni "]
["Ertelmezes Korona 46-99","akar. Az ilyen ember a befolyó információnak minden egyedi részével külön-külön dolgozik, a szóbeli "]
["Ertelmezes Korona 46-99","elképzelést a nyelvtant és a szórendet helyezi előtérbe. Szavakban és matematikai szimbólumokban "]
["Ertelmezes Korona 46-99","kifejezett információval dolgozik, a szavak és a számok számára, speciális emlékező központjai vannak."]
["Ertelmezes Korona 46-99","Elemez, kritikailag felmér, számszerű értékelést ad. "]
["Ertelmezes Korona 46-99","Nagyon jó verbális vagyis szóbeli kommunikáció jellemzi. "]
["Ertelmezes Szellemi osszehasonlitas"]
["Ertelmezes Szellemi osszehasonlitas","A 6. és 7. csakra együttes értéke (intuíció-logika) "]
["Ertelmezes Szellemi osszehasonlitas","Az idegrendszer szellemi terhelhetőségét a jobb és a bal agyfélteke energiaszintjét jelzi ez az "]
["Ertelmezes Szellemi osszehasonlitas","összérték. Vagyis a két érték összege, megmutatja az agy általános teljesítőképességét, az "]
["Ertelmezes Szellemi osszehasonlitas","intellektuális funkciók produktivitását, a munka, az alkotás, a célok megfogalmazásának szintje. "]
["Ertelmezes Szellemi osszehasonlitas 0-70","(0-70 között) alacsony összérték, gyakorlati típus: "]
["Ertelmezes Szellemi osszehasonlitas 0-70","kevés mentális energia, praktikus analógia szerint működik. "]
["Ertelmezes Szellemi osszehasonlitas 71-100","(71-100 között) közepes összérték: "]
["Ertelmezes Szellemi osszehasonlitas 71-100","harmonikus típus. Határokat hoz létre és azon belül igyekszik működni. "]
["Ertelmezes Szellemi osszehasonlitas 101-200","(100-200 között) magas összérték: "]
["Ertelmezes Szellemi osszehasonlitas 101-200","produktív típus. Inkább az elmélet érdekli, a kitalálás, a produktum. Tehát megteremteni és megcsinálni"]
["vege"]
["vege","A Női és férfi energiák értelmezése"]
["vege"]
["vege","Az összenergia összetevődik a yin női és a yang férfi energiából. Megmutatja a női-férfi energiák "]
["vege","elosztását, dominanciáját az egyénen belül. "]
["vege","Ennek a két adatnak a vizsgálata azért fontos, hogy meghatározzuk, hogy az adott személy a saját "]
["vege","fizikai nemi megnyilvánulását, hogyan képes egyeztetni a benne lévő energiákkal. Amennyiben egy "]
["vege","nőnek kevesebb a női energiája, nem következik, hogy ő férfias lenne. Egy ilyen energiával egy nő,"]
["vege","nagyon jó vezető lehet, eredményes lehet a verseny és küzdősportokban. Érdemes tudatosítania ezt, "]
["vege","és megélni a munkában, karrierben, hobbiban ezt az energiát, és akkor a családban, magánéletben,"]
["vege","képes lesz a női energiát kibontakoztatni."]
["vege"]
["vege","Amikor egy férfinek több a női energiája, akkor számára ahhoz, hogy megélje, kibontakoztassa a "]
["vege","férfias neme szerinti energiákat, érdemes olyan tevékenységet választani akár munkában, akár "]
["vege","hobbiban, amiben az energiájában lévő női energia megnyilvánul. "]
["vege","Ilyenkor, ha a kevés férfienergiáját például küzdősportra, versengésre összpontosítja, lehetséges, "]
["vege","hogy a többi tevékenységéhez nem jut elég energia."]
["vege"]
["vege","*Ha valakire nagyon nem illenek a leírtak, akkor igazi arcát csak stresszhelyzetben mutatja meg. "]
["vege","Normál helyzetben a szülőktől, nagyszülőktől tanult álarcot viseli, amit a környezet megerősít."]
["vege","Valamint, ha az összenergia (életenergia) érték: "]
["vege","250 alatt: átlag alatti érték: itt arról van szó, hogy kevés energiával él az illető. "]
["vege","250-300: Átlag. "]
["vege","300 felett: magasabb az átlagosnál Abban az illetőben, nagyon sok energia van,"]
["vege","minden csakra / csakra pár csúcsra van járatva. Akinek magas az összéletenergiája, annak kevesebb "]
["vege","újratöltésre van szüksége, illetve hamar tud töltekezni. Az alacsony életenergiával rendelkezők "]
["vege","esetében fontos lehet, a növényekkel való érintkezés, mivel a növény önzetlenül tudja feltölteni az "]
["vege","embert. Az alacsony élet energiával rendelkezők jobb barátok, mint a magas életenergiával "]
["vege","rendelkezők, mivel ragaszkodóbbak, még ha önzés is párosul a barátsághoz, mivel belőlük töltekezik. "]
["vege","A magasabb élet energiával rendelkezők, kicsit lazábban veszik a dolgokat, a kapcsolatokat, mivel "]
["vege","egyedül is jól megvannak, így is jól tudnak működni."]

{"sheet":"Info","index":4,"n_rows":96,"n_cols":5,"rows_kept":96,"cut":false,"hidden":false,"merged":[[3,1,4,7],[46,1,46,8],[49,1,49,8],[52,1,52,8],[29,1,29,8],[31,1,31,8],[33,1,33,8],[35,1,35,8],[37,1,37,8],[39,1,39,8],[41,1,41,8],[43,1,43,8],[5,1,5,7],[63,1,63,8],[65,1,65,8],[66,1,66,8],[54,1,54,8],[55,1,55,8],[57,1,57,8],[58,1,58,8],[59,1,59,8],[60,1,60,8],[79,1,79,8],[80,1,80,8],[81,1,81,8],[82,1,82,8],[73,1,73,8],[75,1,75,8],[76,1,76,8],[77,1,77,8],[78,1,78,8],[67,1,67,8],[68,1,68,8],[69,1,69,8],[70,1,70,8],[71,1,71,8],[92,1,93,7],[94,1,94,7],[8,1,8,7],[9,1,9,7],[23,1,23,8],[25,1,25,8],[19,2,19,8],[20,2,20,8],[21,2,21,8],[22,2,22,8],[85,1,85,8],[86,1,86,8],[87,1,87,8],[88,1,88,8],[83,1,83,8],[61,1,61,8]]}
[]
[]
[]
[null,"A szoftver továbbértékesítése, módosítása nem megengedett, megvásárolható, vagy a DEMÓ verzió letölthető a honlapról."]
[]
[null,"A DEMÓ verzió korlátai:"]
[null,"- Csak a rögzített dátumokkal használható"]
[null,"- Új időpont nem rögzíthető benne"]
[]
[null,"A teljes program megvásárolható vagy elemzés kérhető: www.centralnet.hu/kronobiologia"]
[null,"Információk: https://www.facebook.com/groups/egyuttazutunkon"]
[null,"Tanfolyam: Lásd a lap alján!"]
[]
[]
[]
[]
[null,"A program használata:"]
[null,"KronoBiológia lapon"]
[null,"- Megnyitás gomb: Már rögzített adatok betöltése, módosítása, új adatok rögzítése."]
[null,null,"Új személy: értelem szerűen új adat bevitelére szolgál. (Menteni szükséges a végén)"]
[null,null,"Módosítás: alul a listában kijelölz személy adatait betölti és módosítható (Menteni szükséges a végén)"]
[null,null,"Törlés: alul a listában kijelölt személyt törli."]
[null,null,"Betöltés: alul a listában kijelölt személyt betölti elemzésre az oldalra. A számolt adatai rögtön láthatók."]
[null,"- Elemzés gomb: A betöltött adatokból elemzést készít, mely pdf-be menthető illetve nyomtatható."]
[]
[null,"- Dátum: A dátumot nem figyeli, hogy helyes e! Február 30 nincs, akkor sem ha beírod :) Számolni fog vele, de hibásan. (úgy értelmezi, mintha Március 2-t írtál volna) Idővel javítva lesz."]
[]
[]
[null,"Kronobiologiáról"]
[null,"Születésünk dátumából megállapítható, hogy milyen egész életünkre kiható tulajdonságokkal ruházott fel bennünket az Univerzum. A kronobiológia keretein belül megismerhetjük saját születési energiáinkat, \nszemélyiségünk fizikai, érzelmi és intellektuális alappilléreit, saját tetteink és kapcsolataink mozgatórugóit."]
[]
[null,"A Kronobiológia pszichogenetika, egy fiatal tudományág, amely a pszichológiai ismeretek, a bioritmus elmélet, a fiziológiai tudás, a keleti orvoslás és a kvantumfizikai elképzelések találkozásának határmezsgyéjén elhelyezkedő hihetetlen széles óriási Arsenalból merítő tudományágról beszélhetünk.... \nami 1981-ben a volt Szovjetunióban született meg. Kidolgozója doktor Artur \nVlagyimirovics Zsazskov, akinek munkásságát Magyarországon Dr Szmirnova \nTatjana Ivanovna folytatja. "]
[]
[null,"Dr Zsazskóv azt vizsgálta, azt kutatta, hogy hogyan hathat a születési időpont az emberre, hogyan lehet az embereket tipizálni. És a munkacsoportjával, közel 20 ezer sikeres embert vizsgáltak meg, 16 különböző szakterületen, születési dátumok szerint."]
[]
[null,"A kronobiológiai zseniális módon segít fizikailag, érzelmileg és intellektuálisan abban, hogy megtaláljuk azt a hangot a másikkal, ami az ő hangja. És abban is segít, hogy kivagyok én.\nTehát saját magammal megtaláljam a hangot.\nTehát Zsazskovék azt vették észre, hogy pusztán a születési dátumukból ezeknek az embereknél három bioritmus alapján nagyon jól be lehetett azt határolni, hogy miben a legjobbak ők. Ezeket összevetve azt állapította meg, hogy egy táblázat segítségével a születési dátumból ki tudjuk számolni az egyént jellemző energiákat fizikai szinten, érzelmi szinten és intellektuálisan. Ebből Pedig meg mondható, hogy mi az ő természetes tehetsége, potenciálja. "]
[]
[null,"A fizikailag 23 napos ciklust ölel fel, az érzelmileg 28 napos ciklust, intellektuálisan pedig 33 napos ciklust ölel fel. "]
[]
[null,"Azért jó, ha megismerjük a tulajdonságainkat, az erősségeinket, és a gyengeségeinket. Ugyanis, nagyon sokszor úgy kezdjük el viszonyítani magunkat, hogy mások mit mondanak rólunk. Mit mondtak a szüleink, mit mondtak a tanáraink vagy a főnökünk. Mit mondanak más emberek, hogyan értékeltek, hogyan értékelnek minket. Viszont nekünk, tökéletesen az értékeinkre kell, koncentrálunk. Miért? Mert ha arra koncentrálunk, akkor a legjobb formánkat hozzuk. Ha gyengeségeinkre, akkor biztos, hogy lúzernak fogjuk érezni magunkat. És ez ugye nem egy kényelmes állapot. Mindenkinek vannak jó, és jobb tulajdonságai. Ha értékeidre támaszkodsz, akkor azt tudod fejleszteni. \nEzáltal zseniális leszel. Tudod, hogy amit csinálsz, abban te vagy a legjobb.  Viszont, ha a gyengeségeidre fókuszálsz, akkor millió egy kifogást, fogsz találni, hogy miért nem működnek a dolgok. A kronobiológia pontosan abban fog segíteni, hogy fizikailag, érzelmileg és intellektuálisan megtaláld azt a saját belső erődet, amire támaszkodni tudsz."]
[]
[null,"Yung: „Ami nem emelkedik a tudatosság szintjére, arra sorsként tekintünk”. "]
[]
[null,"A kronobiológia alappillére az a BIORITMUS. A bioritmus elmélet szerint a természetben minden periodikusan ismétlődik, akár az évszakok, a hetek vagy az éjszakák és a nappalok váltakozása. A születés pillanatában a saját bioritmusunk is elindul. Tehát minden ember életében egyszerre, három szinusz hullám indul el. A fizikai, az érzelmi, és az intellektuális. De hála a jó istennek sosem egyszerre vagyunk ugyanabban a fázisban. Mert fizikailag a bioritmusunk hossza 23 napos ciklus 23 nap alatt ér körbe, érzelmileg 28 napos ciklusról beszélünk, intellektuálisan pedig 33 napos ciklusról beszélünk. \nA kronobiológia pszichogenetika módszertana erre a három életritmusra épül.. "]
[]
[null,"Fizikai görbe: A test bioritmusa (23 napos ciklus)"]
[null,"Fizikai görbénk mutatja, hogy fizikai kondíciónk milyen állapotban van. A pozitív szakaszban, jó formában érezzük magunkat, több az energiánk szívesebben végzünk fizikai tevékenységet, a sportban is jobb eredményeket érünk el. Negatív tartományban Több pihenésre, feltöltődésre van szükségünk. Úgy érezzük, kevesebb az erőnk, energiánk. "]
[]
[null,"Érzelmi görbe: A lélek bioritmusa (28 napos ciklus)"]
[null,"Az érzelmi görbénk befolyásolja, hogy érzelmileg, lelkileg milyen állapotban vagyunk. A pozitív időszakban lelkesebbek optimistábbak vagyunk, pozitívan állunk hozzá az emberekhez, helyzetekhez. Negatív fázisokban viszont hajlamosak vagyunk depresszióra, elhagyhat optimizmusunk, felerősödhetnek lelki problémáink."]
[]
[null,"Szellemi görbe: A szellem bioritmusa (33 napos ciklus) "]
[null,"Szellemi teljesítőképességünket befolyásolja, hogy ez a görbénk éppen milyen tartományban van. Pozitív szakaszban úgy érezzük, hogy könnyebben megy a tanulás és a szellemi munka, jobb eredményeket érhetünk el. Negatív értékeknél csökken a koncentrációs képességünk és \"nehezebben fog az agyunk\". Ilyenkor, ugyanazokat a feladatokat lassabban tudjuk elvégezni."]
[]
[null,"A személyiség jegyekről"]
[null,"Fizikai szinten megállapítható az idegrendszer ereje. Ez megmutatja egy személy ingerküszöbének nagyságát, és a tűrőképességének mértékét. Átfogó képet fest a fizikai temperamentumról, amely lehet flegmatikus, szangvinikus, kolerikus, vagy melankólikus, és ezek keveréke."]
[]
[null,"Röviden a fizikai szintű személyiség jegyekről:"]
[null,"Flegmatikus: nyugodt, hallgatag, visszafogott, türelmes, kitartó. Magas követelményeket támaszt, befelé forduló. Fontos számára a komfort."]
[null,"Szangvinikus: impulzív, lobbanékony, reakciói gyorsan keletkeznek. Kommunikatív, optimista, vidám, aktív."]
[null,"Kolerikus: robbanékony, egyenes, impulzív. A dolgokhoz hangulata szerint viszonyul. Gyorsan dönt, előbb cselekszik, utána gondolkodik. Maximalista, törekvő."]
[null,"Melankólikus: érzékeny, aggodalmaskodó, szégyenlős, nehezen ismerkedik. Könnyen sértődik, érzékeny a kritikára."]
[]
[null,"Érzelmi szinten a személyiség jegyek megmutatják, hogy az én, az ego van-e előtérben, vagy a mi, a közösség, az empátia. Jól szemléltetik az érzelmi temperamentumot: az ember lehet hideg, egoisztikus vezető, szenvedélyes, szentimentális, önfeláldozó vagy empatikus."]
[]
[null,"Röviden az érzelmi szintű személyiség jegyekről:"]
[null,"Hideg: számára a túl erős érzelem nehezen viselhető el."]
[null,"Egoisztikus vezető: fontos számára az eredmény, az önérvényesítés, hogy elfogadják. Képes felelősséget vállalni."]
[null,"Szenvedélyes: érzelmei végletesek, erősek. energikus, kommunikatív, nyitott."]
[null,"Szentimentális: törődik másokkal, de önmagára is képes figyelni. Az érzelmeit kifelé pozitívan tudja megjeleníteni."]
[null,"Önfeláldozó: mások problémáit sokkal előrébb helyezi a sajátjánál. Alkalmazkodó, kiszolgál másokat."]
[null,"Empatikus: együttműködő, jószívű, kedves, készséges, de nem áldozza fel magát. Mindenki felé nyitott, képes kimutatni az érzéseit."]
[]
[null,"Személyiség jegyeink intellektuális szinten megmutatják, hogy az intuíció és a logikus gondolkodás, tehát a két agyfélteke működése milyen arányban játszik szerepet az életünkben. Átfogó képet ad az intellektuális temperamentumról. Ennek fajtái a produktív gondolkodó, produktív művészi, produktív vegyes, gondolkodó, gyakorlati gondolkodó, gyakorlati művészi, gyakorlati vegyes és harmonikus vegyes."]
[]
[null,"Röviden az intellektuális szintű személyiség jegyekről:"]
[null,"Produktív gondolkodó: inkább a logikájára, mint a megérzéseire alapoz, gyakorlatias."]
[null,"Produktív művészi: átlagosnál magasabb értelmi képesség, jó intuíciók, kreatív, váratlan ötletei vannak."]
[null,"Produktív vegyes: okos, könnyen feldolgozza az információt. Megtervezi és véghez is viszi gondolatait, ötleteit. Kreatív, ötletes, munkabíró."]
[null,"Gondolkodó: elsősorban az analizáló gondolkodást használja. Tudatos, racionális. Önállóan, irányítás nélkül képes dolgozni."]
[null,"Gyakorlati művészi: jó művész, ötletei a cselekvésből jönnek, jó a kézügyessége."]
[null,"Gyakorlati gondolkodó: a konkrét feladatokat pontosan teljesíti, szereti a gyors eredményt."]
[null,"Gyakorlati vegyes: eredmény centrikus. Mesteri szinten képes a gyakorlatban megvalósítani a dolgokat. Figyel a részletekre, irányító."]
[null,"Harmonikus vegyes: a két agyfélteke harmonikusan, összehangoltan működik. Minden intellektuális típust könnyen meg tud érteni, rá tud hangolódni mások gondolkodásmódjára."]
[]
[null,"Ezen kívül a kronobiológia megmutatja, hogy"]
[null,"- milyen nagyságú energiacsomaggal születtünk,"]
[null,"- milyen bioritmusban működünk ezen a három területen,"]
[null,"- hogyan tudunk együttműködni az emberi kapcsolatok terén."]
[]
[]
[]
[null,"Köszönet az oktatásért és a program szakmai részében nyújtott segítségért Bánfalvi Andreának!"]
[]
[]
[null,"Kronobiológia tanfolyam: ",null,null,"http://andreaasztrologia.hu"]

{"sheet":"KronoElemzés","index":5,"n_rows":311,"n_cols":9,"rows_kept":311,"cut":false,"hidden":false,"merged":[[2,2,2,3]]}
[]
["Név:","Vanessa Paradis",null,null,null,"Kronobiológia-számoló V1.4",null,null,"www.centralnet.hu"]
["Születési idő:",null,"1972-12-22",null,null,"A program tulajdonosa:",null,null,"DEMO"]
[]
[]
[]
[]
[]
[]
[]
[]
[]
[]
[]
[]
[]
[]
[]
[]
[]
[]
[]
[]
["FIZIKAI szint: Szangvinikus (Az \"életörömmel teli\")"]
["- Megbízhatatlan, rengeteg dolgot megígér, de az új élmények felülírják. Ígéreteket tesz, a marketingje"]
["tökéletes, csak nem marad rá idő, hogy befejezze a dolgokat, mert felülírják a következő éppen "]
["aktuális dolgok."]
["- Erős, kiegyensúlyozott idegrendszerű, mozgékony, jó a mozgáskoordinációja. Énekel, dudorászik "]
["vagy táncol, mert van hozzá energiája."]
["- Gyorsan alakulnak ki az érzelmei, de az újabb izgalmas élmények elcsábíthatják. Érzelmileg nagyon"]
["gyorsan vált. "]
["- Ingerlékeny, lobbanékony, szeszélyes, és szenvedélyes, lendületes, pörgős "]
["- Beszédes, aktív, élénk, mozgékony, sok mindent csinál egyszerre "]
["- Türelmetlen, mindent előbb akar, mint ahogy az élet adja. Állandó időzavarban van, mert túl sok "]
["mindent tesz egyszerre, ezért az idő, mint olyan, nehezen kezelhető számára."]
["- Rugalmas, jó csapatjátékos "]
["- Kezdeményező, beszédes, közvetlen. Úgy tűnik, hogy mindenhez hozzá tud szólni, de nem sokáig"]
[" marad benne. Annyira nem érdekli ő az adott téma, hogy sokáig benne is maradjon, de mégis úgy"]
[" éli meg az ember, hogy jó volt vele beszélgetni, hozott egy kis szint a társalgásba "]
[]
["- Nyitott, sokoldalú, segítőkész, jó szándékú. A kolerikusakról például azt mondták, hogy nagyon "]
["intenzív életet élnek és akarnokok, addig a szangvinikusak, jó érzésűek. Nagyon jóérzésű emberek "]
["fizikailag több empátia szorul beléjük, jobb a belső indíttatásuk, mint egy kolerikusnak."]
["- Kommunikatív, közösségi ember, kifejező mimika jellemzi, hevesen gesztikulál "]
["- A szangvinikus ember egyedülálló a fizikai besorolás szempontjából, ugyanis képes a nyitott"]
[" párkapcsolatra, mert annyira megengedő és toleráns, de elvárja ő is a toleranciát. "]
[]
["Szangvinikus munkában: "]
["- Nem irányító típus, együttműködő, néha nehéz egy dolognál megmaradnia "]
["- Nem szereti az aprólékos egyhangú munkát "]
["- Kényszer és határidők nélkül mindent félbehagyni "]
["- Ingerszegény környezetben jól teljesít, ahol az új ingerek nem vonják el a figyelmét, hosszú távon "]
["azonban nem bírja az ingerszegény környezetet."]
["- Alkalmazkodik, gyorsan bekapcsol a munkába, gyorsan vált. "]
["- Szervező, intézkedő ember, nagyon jól tud kapcsolatokat kiépíteni, legjobb kis feladatokat rábízni, "]
["mert azt be tudja fejezni, és ettől sikerélménye lesz. Szereti, ha dicsérik. "]
[]
["Normál reakciója: azonnal reagál, nevet. Mindenhez jókedvvel tud nekiállni. "]
[]
["Paradox reakciója: sír (ritkán) de utána mozognia kell (nevetés, agresszió, sírás, mozgás) "]
[]
["Stresszeli: monotonitás, bezártság, kevés külső inger, mindig izgalomra van szüksége! Átmenetileg "]
["ilyenkor melankolikussá válik."]
[]
["Számára kevésbé megterhelő az élet, még a jég hátán is megél. Mindenhez van humorérzéke, "]
["kitartása, mindenbe bele tud állni, és igazából egy központi személyiséggé tud válni."]
["Szangvinikus nőnek szangvinikus férfi kell! Nem akarja megváltani a világot, elfogadja olyannak "]
["amilyen. A szangvinikus nő körül csak úgy zsonganak a más temperamentumú férfiak, mivel ő az "]
["egyetlen, aki elviseli a tőle olyannyira különböző típusokat. "]
["Lehet, hogy túlsúlyos, mert a gyomor csakrája nagy, tehát enni tud. "]
["Jó kedélyű, tudja nagy kanállal enni az élet nagy dolgait, jól érzi benne magát, van hozzá humorérzéke, "]
["energiája. "]
["Senkit nem szól le, nem szól be, mert elég nagy amplitúdón mozog."]
[]
["ÉRZELMI szint: Szentimentális (érzékeny, egoisztikus)"]
["Az Én oldal magasabb, de közel azonos mutatók"]
["- Érzékeny hamar megsértődik, de fel is dolgozza a problémáit "]
["- A szerethető egoisztikus. Csak a vágya van meg arra, hogy több legyen neki, de nem harcol érte "]
["- Fontos számára a saját tulajdon, de nem lételeme "]
["- Kicsit jobban belemegy a játszmába "]
["- Nem annyira érdekember, mint az egoisztikus, elég csak egy kis motiváció. Szerethetőbb "]
["- Fontosabb magának, mint a környezete "]
["- Sok energiája van, szeret szerepelni, nincs lámpaláza "]
["- Úgy fejezi ki az érzelmeit, hogy másoknak imponáljon "]
["- Belső érzelemgazdagság jellemzi "]
["- Többször kell találkozni vele, hogy kimutassa érzéseit (elsőre mogorvának tűnhet) "]
["- Szűk baráti körben nagyon jó barát, de sok ember között, nem könnyen mutatja meg magát "]
["- Sértődős, de megbocsát. Sír, ha feszültség éri "]
["- Minden emléket elrak, tárgyakban raktározza érzelmi életét, és ez neki nagyon fontos. "]
["Fájdalmat érez, ha elveszíti ezeket "]
["- Manipulál"]
[]
["INTELLEKTUÁLIS kontúr: Produktív Gondolkodó"]
["Produktív típusról akkor beszélünk, ha a 6. és a 7. csakra együttes értéke magas, vagyis "]
["100 felett van. "]
[]
["Vállalja, hogy pénz nélkül dolgozzon, mivel először befektet, a pénz ráér később érkezni. Tudja, hogy"]
["először be kell fektetni a tudását, a munkáját, az elképzeléseit, az időt. Majd, ha megvalósul, akkor "]
["utána jöhet a megtérülés. Tud úgy dolgozni, hogy nincs azonnali eredmény, számára az alkotás a "]
["fontos. Egyetlen fontos dolog számára az életben, a tudás. Mindent tudni és érteni akar."]
["A fizikai életben lehet boldogtalan, a szellemi életben boldog. "]
["Minden összefüggést átlát, megért, ezáltal, mindent meg tud tervezni. "]
["Tehát nem az azonnali jutalomért fog dolgozni. "]
["Képes a jövőt megálmodni, meglátni, és létre is hozza azt a jövőt, amit lát. "]
["Nem saját hasznára dolgozik, hanem mindenki legjavára. "]
["Úttörő az ilyen ember, akit sokszor csak a halála után ismernek el."]
["Az ilyen okos típusú nagyon könnyen tanul, nagyon jól vág az esze. Az ilyen produktív"]
["gyereknek az iskolában elég figyelni az órán, otthon már nem kell erőltetni a tanulást. Abból megél, "]
["amit az órán hall. Munkaterülete, ahol gyors döntéseket kell hozni, vagy ahol vita, érvelés merülhet fel."]
["Hiszen nagyon gyorsan vág az esze. "]
[]
[]
["Ennek a típusnak az a jellemzője, hogy mivel produktív, 100-nál magasabb az összérték, viszont itt a "]
["7. csakra ami a logikus gondolkodásnak a területe magasabb. "]
[]
["Itt absztrakt szinten működik a gondolkodás. Ugyan a logikára és érvekre támaszkodik, de elvont, a"]
["valóság összefüggéseivel nem törődő, a szokásos formákat megbontó ember. Fürge észjárású, "]
["filozofikus alkat, szó szerint penge agya van, mindent jól lát, mindent jól tud. "]
["Abszolút filozofikus alkat, 6000 oldal jegyzet van az agyában, amit el is tud mondani. "]
["Jön neki az intuíció, persze ritkábban, mint a produktív vegyeseknek. Viszont a Koronacsakra magas"]
["értékének a segítségével, ezeket a intuíciós megérzéseket gyönyörűen tudja verbálisan működtetni. "]
["Hihetetlenül jól tudja lehozni a Koronacsakra segítségével az információkat tehát a legeslegjobban a"]
["produktív - gondolkodók tudnak kapcsolódni a felsőbb Énhez. "]
[]
["Kiemelhető a 29-82 és a 29-88-as értékkel rendelkezők. Ők nagyon különleges emberek különös"]
["képességük, illetve küldetésük, hogy az Univerzumból lehozzák az információkat. Hiszen nagyon"]
["magas energiával működik a Koronacsakrájuk. Ugyan a Harmadik szem csakrának alacsony az értéke,"]
["de azokat, amiket ezzel a kevés intuíciós energiával éreznek azt tudják használni. Illetve, ha elindulnak "]
["a spirituális úton, tudatában vannak annak, hogy fentről hozzák az üzeneteket. Ez az intuíciós energia"]
["hozzáadódik a logikus energiához, és a kettőt összefésülve, egyszerűen tudják, hogy az nem egy kósza "]
["megérzés. Nyilván itt is vannak olyan emberek, akik ilyen típusba tartoznak, de mégsem tudják ezt"]
["magukról, viszont ugyanúgy hoznak le információkat, csak nem tudják hova tenni. Mivel a 7. csakra "]
["értéke magasabb, ezért szükségük van a logikus meggyőződésre. A produktív vegyes, nem akar"]
["meggyőzni senkit, nem akar bizonygatni, mert neki egyértelmű, hogy mindenkinek értenie kellene,"]
["amiről beszél, viszont a produktív gondolkodók be akarják bizonyítani, illetve be is bizonyítják, "]
["hogy igazuk van. Egyszerűen tudnak dolgokat és azokat logikával, érvekkel meg is tudják "]
["magyarázni, igy lesznek hitelesek. Nekik van türelmük ezt kikommunikálni. Inkább a múltban élnek, "]
["nem csaponganak a múlt- jelen és jövő között. Produktív, tehát látja a jövőt, úgymond a jövőképet,"]
["de mégis mindent a múltból eredeztet. A múlt mindig, egy viszonyítási pont számára. Amikor beszél,"]
["vagy filozofál, azt látod a szemén, hogy mintha valahonnan ezt előszedné, a fejéből vagy valahol"]
["keresgélne a gondolataiban, múltjában megtanult, megtapasztalt dolgok között."]
[]
["Tehát, a produktív gondolkodóknál, kifejezetten az információ közvetítés a fontos. Rengeteget "]
["olvas, és tanul és szűri ki az információkat mindenhonnan. Ez nagyon jó, mert nagyon nagy"]
["tudásra tesz szert, viszont nem mindig tudja kibontakoztatni ezt az óriási nagy tudását. De a"]
["vágya az, hogy mindent tudni akar. Azt gondolja, hogy ezt más is tudni akarja, és ezért elmondja"]
["neki, ha akarja, ha nem. Szeretné a tudását a világgal megosztani. "]
[]
["Bármelyik gondolkodó típusnak nagyon nehezére esik meditálni és mindig le kell kötni a az agyát"]
["valamilyen mentális tevékenységgel, mert máskülönben folyamatos agyalásban van. Még éjszaka is  "]
["vagy este mikor lefekszik. Ezért jó neki, ha egy picit a jobb agyféltekét stimulálja, kicsit edzi."]
["Gondolkodó nagyon szeret tanulni, és meg is akar érteni mindig mindent. Intellektuális síkon azt kell "]
["még tudni, hogy a hasonlók a hasonlókkal értenek szót. A harmonikusak mindenkivel megtálaljak a "]
["hangot."]
[]
["Értelmezzük az adatokat"]
["Általános értelmezés"]
["Fizikai szint: - nemi aktivitás, vágyak, reagálás, inger felvétel - materiális szinttel, anyaggal kapcsolatos "]
["dolgok - anyagi javak - tevékenységgel, cselekedetekkel kapcsolatos dolgok - munkavégzés, "]
["bekapcsolódása sebesség a cselekvésbe - ébredés/ elalvás - ki milyen gyorsan tud alkalmazkodni "]
["dolgokhoz, helyzetekhez "]
["Érzelmi szint: - a motiváció - túlélő képesség, érzelmi megnyilvánulás - lelkesedés - érzelmek és "]
["realitás összefüggés "]
["Intellektuális szint: - cselekvés alapjául szolgáló - gondolatban megfogalmazott dolgok - a célok - "]
["a munka a tanulás "]
["Minél nagyobb egy csakra értéke annál határozottabban jellemző a csakra által képviselt "]
["tulajdonság az egyénre. "]
[]
["FIZIKAI KONTÚR: "]
["Itt a Szakrális (2) csakrát és a Napfonat (3) csakrát vizsgáljuk."]
[]
["Fékezés (2 Szakrális v. Szexcsakra): A differenciálás képessége, az egyén reagálása a világ felé "]
["(ki be kapcsolódás) "]
["Lásd az első oldalon a 2.-es Szakrális csakra értékét."]
["(Szakrális csakra értéke: 45)"]
[]
["(31-45) A fékezés értéke közepes: Közepes mértékű alvás- és mozgásigény. Közepes rugalmasság. "]
[]
["Élénkítés-aktivitás (3 Köldök v. Gyomorcsakra): Az aktivitás mértékét mutatja. A bekapcsolódás "]
["képességet, ahogy az egyén, a világ változásait feldolgozza, ahogy lereagálja. Mennyire van ritmusa, "]
["dinamikája annak, amit csinálok. Mennyire vagyok gyors, mennyire vagyok lassú. Az ún. "]
["bekapcsolódás ereje, amely kifejezi az élénkség mértékét, az információk feldolgozásában. "]
["Mennyire terhelhető az illető, mit bír el, mekkora a türelme, mekkora a kitartása."]
["Lásd az első oldalon a 3.-es Köldökcsakra értékét."]
["(Köldök csakra értéke: 72)"]
[]
["(46-99) aktivitás értéke magas: Fürge, mozgékony, aktív, csinálja, lelkes mozog, lehet, hogy túlmozgása"]
["is van. Nagy gesztikulációkkal magyaráz, nagy a kitartása van, de ugyanakkor rámenős is tud lenni, "]
["akár gátlástalanul tolni, amit elkezd csinálni. Enni is tud, szeret is enni. Bármit meg tud enni, nagyokat "]
["tud nevetni, minden, ami a fizikai szinten az élvezeteket jelenti, azt imádja, ez a Bika féle élet igenlő érzés "]
["van benne és szinte bármit megetethetnek vele. Bármit \"megtehetnek\" vele, a szó átvitt értelmében. "]
["Nem stresszeli, ha több feladatot kell egyszerre végeznie. "]
[]
["A 2. és 3. csakra együttes értéke (fékezés-aktivitás) "]
["A két érték összege, az általános ingerküszöb nagyságát, az idegrendszer fizikai erejét, és "]
["ingertűrő képességét mutatja. "]
["(Szakrális és Köldökcsakra együttes értéke: 45 + 72 = 117)"]
["Ha ez az összérték magas (101-200 közötti) A ráhatások felé mozdul el. energikus, racionális, "]
["hatékony, gyakorlatias, felületes, céltudatos."]
[]
["A 2. és 3. csakra egymáshoz viszonyított értékei: "]
["Kiegyensúlyozott számpár: az egyik szám nem nagyobb, mint a másik kétszerese. "]
["Kiegyensúlyozatlan számpár: Ha az egyik szám értéke legalább kétszerese a másiknak. "]
["Ilyenkor a nagyobb értékű csakra tulajdonságai elnyomják a másik tulajdonságait. Az a csakra fog "]
["intenzívebben dominálni. "]
[]
["ÉRZELMI KONTÚR: "]
["Itt a Szívcsakrát és a Torokcsakrát vizsgáljuk."]
[]
["Érzelmek (4. Szívcsakra) ÉN - EGO Az önzés mértéke. "]
["Önérvényesítés, \"Én\" mennyire tudom magamat képviselni. Mennyire tudom kifejezésre juttatni a saját "]
["vágyaimat, saját elképzeléseimet, a saját értékeimet. Éntudat, Öntudat. "]
["Lásd az első oldalon a 4.-es Szívcsakra értékét."]
["(Szív csakra értéke: 44)"]
[]
["(31-45) az érzelmi aktivitás értéke közepes: közepesen érzékeny saját szükségleteire, közepesen fontos"]
["magának. Kicsit fontos a saját személyisége, de még ő sem ad nagyon hangot ennek, viszont azért, már "]
["egy picit tisztában van, a saját képességeivel. "]
[]
["Érzések (5. Torokcsakra): "]
["\"MI\" A\"MI \" mértéke, az érzésekből eredő türelem, és érzékenység. Megmutatja, hogy az ember "]
["mennyire képes a másikat elfogadni, mások problémáiba beleérezni, gondjaikat magáévá tenni. "]
["Mennyire empatikus és mennyire együttérző. "]
["Lásd az első oldalon a 5.-os Torokcsakra értékét."]
["(Torok csakra értéke: 32)"]
[]
["(31-45) az érzések értékek közepes: közepes mértékben figyel a környezetére, képes már "]
["kinyilvánítani az érzéseit, viszont, csak közepesen nyilvánítja ki az érzéseit."]
[]
["A 4. és 5. csakra együttes értéke (érzelmek-érzések) "]
["A két érték összegének nagysága: Megmutatja, hogy mekkora az általános érzelmi "]
["tűrőképesség. Mekkora az érzelmi tartaléka, amivel rendelkezik a személy. Mennyire erős a "]
["saját érzelmi ráhatása, És mekkora ellenállást képes érzelmileg elviselni, anélkül, hogy "]
["kibillenne. "]
["(Szív és Torokcsakra együttes értéke: 44 + 32 = 76)"]
["Közepes (71-100 közötti) közepesen terelhető érzelmileg. Ki tud esetleg állni a saját igényeiért, ki "]
["tudja magát fejezni. Lehet, hogy szentimentális módon, ami azt jelenti, hogy úgy fogja lekommunikálni, "]
["hogy más azt higgye, hogy az, az ő döntése. De érvényre juttatja saját vágyát, saját akaratát, vagy "]
["empatikusként, odaadóbbá tud válni. Többet ad, mint amit elvár. "]
[]
["SZELLEMI vagy INTELLEKTUÁLIS KONTÚR: "]
["Itt a Harmadik szem csakrát és a Koronacsakrát vizsgáljuk "]
[]
["Intuíció (6. Harmadik szem csakra) "]
["A megérzések mértéke, az analóg, képi feldolgozás képessége és a veleszületett viselkedésforma. "]
["Megmutatja a jobb agyfélteke funkcionális állapotát, az információ egységben való feldolgozásának "]
["képességét. "]
["A jobb és a bal agyfélteke, különböző funkciót lát el. A jobb agyfélteke beidegzi a testnek a bal oldalát,"]
["a bal agyfélteke pedig a testnek a jobb oldalát. Akiknél a jobb agyfélteke dominál, azok kreatívak,"]
["intuitívak, művészi képességekkel rendelkeznek, a dolgokat képesek másképp látni, más rajzolódik"]
["ki az elméjükben. Jobban tudnak képekben gondolkodni. "]
["Lásd az első oldalon a 6.-os homlok vagy 3. szem csakra értékét."]
["(Homlok csakra értéke: 29)"]
[]
["(0-30) az aktivitás értéke alacsony: Nem a sugallatokra figyel, hanem az eredményekre. "]
["Inkább gyakorlatias. "]
[]
["Logika (7. Koronacsakra)"]
["A logikának a mértéke, analizáló, mérlegelő gondolkodás, a feldolgozás képessége és szerzett "]
["viselkedésforma. Megmutatja a bal agyfélteke funkcionális állapotát, az információ szó szerinti "]
["értelmezésének a darabokban való feldolgozásának a képességét. "]
["Lásd az első oldalon a 7.-es Koronacsakra értékét."]
["(Korona csakra értéke: 88)"]
[]
["(46-99) magas érték: jó az ember logikai, a mennyiségi műveletek végrehajtásának, a kritikai és "]
["analitikai munkának a képessége. Racionális. A részletek az apró darabok a fontosabb számára, hogy "]
["össze tudjon állj az egész kép. Kissé szőrszálhasogató tud lenni. Mert mindent érteni és mindent tudni "]
["akar. Az ilyen ember a befolyó információnak minden egyedi részével külön-külön dolgozik, a szóbeli "]
["elképzelést a nyelvtant és a szórendet helyezi előtérbe. Szavakban és matematikai szimbólumokban "]
["kifejezett információval dolgozik, a szavak és a számok számára, speciális emlékező központjai vannak."]
["Elemez, kritikailag felmér, számszerű értékelést ad. "]
["Nagyon jó verbális vagyis szóbeli kommunikáció jellemzi. "]
[]
["A 6. és 7. csakra együttes értéke (intuíció-logika) "]
["Az idegrendszer szellemi terhelhetőségét a jobb és a bal agyfélteke energiaszintjét jelzi ez az "]
["összérték. Vagyis a két érték összege, megmutatja az agy általános teljesítőképességét, az "]
["intellektuális funkciók produktivitását, a munka, az alkotás, a célok megfogalmazásának szintje. "]
["(Homlok és Koronacsakra együttes értéke: 29 + 88 = 117)"]
["(100-200 között) magas összérték: "]
["produktív típus. Inkább az elmélet érdekli, a kitalálás, a produktum. Tehát megteremteni és megcsinálni"]
[]
["A Női és férfi energiák értelmezése"]
[]
["Az összenergia összetevődik a yin női és a yang férfi energiából. Megmutatja a női-férfi energiák "]
["elosztását, dominanciáját az egyénen belül. "]
["Ennek a két adatnak a vizsgálata azért fontos, hogy meghatározzuk, hogy az adott személy a saját "]
["fizikai nemi megnyilvánulását, hogyan képes egyeztetni a benne lévő energiákkal. Amennyiben egy "]
["nőnek kevesebb a női energiája, nem következik, hogy ő férfias lenne. Egy ilyen energiával egy nő,"]
["nagyon jó vezető lehet, eredményes lehet a verseny és küzdősportokban. Érdemes tudatosítania ezt, "]
["és megélni a munkában, karrierben, hobbiban ezt az energiát, és akkor a családban, magánéletben,"]
["képes lesz a női energiát kibontakoztatni."]
[]
["Amikor egy férfinek több a női energiája, akkor számára ahhoz, hogy megélje, kibontakoztassa a "]
["férfias neme szerinti energiákat, érdemes olyan tevékenységet választani akár munkában, akár "]
["hobbiban, amiben az energiájában lévő női energia megnyilvánul. "]
["Ilyenkor, ha a kevés férfienergiáját például küzdősportra, versengésre összpontosítja, lehetséges, "]
["hogy a többi tevékenységéhez nem jut elég energia."]
[]
["*Ha valakire nagyon nem illenek a leírtak, akkor igazi arcát csak stresszhelyzetben mutatja meg. "]
["Normál helyzetben a szülőktől, nagyszülőktől tanult álarcot viseli, amit a környezet megerősít."]
["Valamint, ha az összenergia (életenergia) érték: "]
["250 alatt: átlag alatti érték: itt arról van szó, hogy kevés energiával él az illető. "]
["250-300: Átlag. "]
["300 felett: magasabb az átlagosnál Abban az illetőben, nagyon sok energia van,"]
["minden csakra / csakra pár csúcsra van járatva. Akinek magas az összéletenergiája, annak kevesebb "]
["újratöltésre van szüksége, illetve hamar tud töltekezni. Az alacsony életenergiával rendelkezők "]
["esetében fontos lehet, a növényekkel való érintkezés, mivel a növény önzetlenül tudja feltölteni az "]
["embert. Az alacsony élet energiával rendelkezők jobb barátok, mint a magas életenergiával "]
["rendelkezők, mivel ragaszkodóbbak, még ha önzés is párosul a barátsághoz, mivel belőlük töltekezik. "]
["A magasabb élet energiával rendelkezők, kicsit lazábban veszik a dolgokat, a kapcsolatokat, mivel "]
["egyedül is jól megvannak, így is jól tudnak működni."]

{"sheet":"Regisztráció","index":6,"n_rows":7,"n_cols":2,"rows_kept":7,"cut":false,"hidden":false,"merged":[[0,1,0,6],[2,1,2,6]]}
[null,"Regisztrációs felület"]
[]
[null,"A regisztrációs filet másold be abba a könyvtárba ahol a program található, majd nyomd meg a regisztrálom gombot."]
[]
[]
[null,"Ezt a file-t keresi a program:"]
[null,"Krono-regisztracio.xlsx"]